Workbook

Sheet Raw Data
A1: Award Number | B1: Organization | C1: City | D1: State | E1: Amount | F1: Award FY | G1: Award Date | H1: Title | I1: Project Period | J1: NOFO Number | K1: Center Scope | L1: Action Type | M1: Program Family | N1: Data Note
A2: SP084776-01 | B2: INTERACTION, INC. dba YOUTH SERVICES, INC. | C2: BRATTLEBORO | D2: VT | E2: 250000 | F2: 2025 | G2: 2025-09-30 | H2: Strategic Prevention Framework – Partnerships for Success for Communities and Tribes | I2: 2025/09/30-2030/09/29 | J2: SP-25-002 | K2: =IF(LEFT(A2,2)="SP","CSAP (SP)","Other center (TI)") -> CSAP (SP) | L2: =IF(RIGHT(A2,3)="-01","New Start","Continuation / Other") -> New Start | M2: SPF-PFS | N2: Suffix present
A3: SP084968-01 | B3: VILLAGE FOR FAMILIES AND CHILDREN, INC. | C3: HARTFORD | D3: CT | E3: 250000 | F3: 2025 | G3: 2025-09-29 | H3: Strategic Prevention Framework – Partnerships for Success for Communities and Tribes | I3: 2025/09/30-2030/09/29 | J3: SP-25-002 | K3: CSAP (SP) | L3: New Start | M3: SPF-PFS | N3: Suffix present
A4: SP084801-01 | B4: TOWN OF MIDDLETOWN | C4: MIDDLETOWN | D4: RI | E4: 250000 | F4: 2025 | G4: 2025-09-29 | H4: Strategic Prevention Framework – Partnerships for Success for Communities and Tribes | I4: 2025/09/30-2030/09/29 | J4: SP-25-002 | K4: CSAP (SP) | L4: New Start | M4: SPF-PFS | N4: Suffix present
A5: SP084876-01 | B5: MEDFORD, CITY OF | C5: MEDFORD | D5: MA | E5: 250000 | F5: 2025 | G5: 2025-09-29 | H5: Strategic Prevention Framework – Partnerships for Success for Communities and Tribes | I5: 2025/09/30-2030/09/29 | J5: SP-25-002 | K5: CSAP (SP) | L5: New Start | M5: SPF-PFS | N5: Suffix present
A6: SP084601-01 | B6: CHILD HEALTH/DEVELOPMENT INSTITUTE OF CT | C6: FARMINGTON | D6: CT | E6: 425000 | F6: 2025 | G6: 2025-09-29 | H6: Strategic Prevention Framework – Partnerships for Success for Communities and Tribes | I6: 2025/09/30-2030/09/29 | J6: SP-25-002 | K6: CSAP (SP) | L6: New Start | M6: SPF-PFS | N6: Suffix present
A7: SP084685-01 | B7: GANDARA MENTAL HEALTH CENTER | C7: WEST SPRINGFIELD | D7: MA | E7: 425000 | F7: 2025 | G7: 2025-09-29 | H7: Strategic Prevention Framework – Partnerships for Success for Communities and Tribes | I7: 2025/09/30-2030/09/29 | J7: SP-25-002 | K7: CSAP (SP) | L7: New Start | M7: SPF-PFS | N7: Suffix present
A8: SP084326-02S1 | B8: ADCARE EDUCATIONAL INSTITUTE OF MAINE, INC. | C8: AUGUSTA | D8: ME | E8: 227272 | F8: 2025 | G8: 2025-09-29 | H8: FY 2024 Prevention Technology Transfer Centers Cooperative Agreements | I8: 2024/09/30-2029/09/29 | J8: SP-24-002 | K8: CSAP (SP) | L8: Continuation / Other | M8: PTTC | N8: Suffix present
A9: SP084399-02 | B9: BRIDGES HEALTHCARE, INC. | C9: MILFORD | D9: CT | E9: 60000 | F9: 2025 | G9: 2025-09-29 | H9: Sober Truth on Preventing Underage Drinking Act Grants | I9: 2024/09/30-2028/09/29 | J9: SP-24-001 | K9: CSAP (SP) | L9: Continuation / Other | M9: STOP Act | N9: Suffix present
A10: SP084405-02 | B10: BRIDGES HEALTHCARE, INC. | C10: MILFORD | D10: CT | E10: 60000 | F10: 2025 | G10: 2025-09-29 | H10: Sober Truth on Preventing Underage Drinking Act Grants | I10: 2024/09/30-2028/09/29 | J10: SP-24-001 | K10: CSAP (SP) | L10: Continuation / Other | M10: STOP Act | N10: Suffix present
A11: SP084169-02 | B11: CENTRAL VERMONT MEDICAL CENTER, INC. | C11: BERLIN | D11: VT | E11: 374304 | F11: 2025 | G11: 2025-09-29 | H11: Strategic Prevention Framework-Partnerships for Success for Communities, Local Governments, Universities, Colleges, and Tribes/Tribal Organizations | I11: 2024/09/30-2029/09/29 | J11: SP-23-004 | K11: CSAP (SP) | L11: Continuation / Other | M11: SPF-PFS | N11: Suffix present
A12: SP083808-03 | B12: BOSTON PUBLIC HEALTH COMMISSION | C12: BOSTON | D12: MA | E12: 31113 | F12: 2025 | G12: 2025-09-29 | H12: Strategic Prevention Framework-Partnerships for Success for Communities, Local Governments, Universities, Colleges, and Tribes/Tribal Organizations | I12: 2023/09/30-2028/09/29 | J12: SP-23-004 | K12: CSAP (SP) | L12: Continuation / Other | M12: SPF-PFS | N12: Suffix present
A13: SP083624-03 | B13: COASTLINE EAP (EMPLOYEE ASSISTANCE PROGRAM) | C13: WARWICK | D13: RI | E13: 60000 | F13: 2025 | G13: 2025-09-29 | H13: FY 2023 Sober Truth on Preventing Underage Drinking Act Grants | I13: 2023/09/30-2027/09/29 | J13: SP-23-002 | K13: CSAP (SP) | L13: Continuation / Other | M13: STOP Act | N13: Suffix present
A14: SP083570-03 | B14: MEDWAY PUBLIC SCHOOLS | C14: MEDWAY | D14: MA | E14: 48000 | F14: 2025 | G14: 2025-09-29 | H14: FY 2023 Sober Truth on Preventing Underage Drinking Act Grants | I14: 2023/09/30-2027/09/29 | J14: SP-23-002 | K14: CSAP (SP) | L14: Continuation / Other | M14: STOP Act | N14: Suffix present
A15: SP083488-03 | B15: COMMUNITY AGAINST SUBSTANCE ABUSE | C15: WINTHROP | D15: MA | E15: 60000 | F15: 2025 | G15: 2025-09-29 | H15: FY 2023 Sober Truth on Preventing Underage Drinking Act Grants | I15: 2023/09/30-2027/09/29 | J15: SP-23-002 | K15: CSAP (SP) | L15: Continuation / Other | M15: STOP Act | N15: Suffix present
A16: SP083525-03 | B16: TOWN OF STRATFORD | C16: STRATFORD | D16: CT | E16: 60000 | F16: 2025 | G16: 2025-09-29 | H16: FY 2023 Sober Truth on Preventing Underage Drinking Act Grants | I16: 2023/09/30-2027/09/29 | J16: SP-23-002 | K16: CSAP (SP) | L16: Continuation / Other | M16: STOP Act | N16: Suffix present
A17: SP083346-04 | B17: MAINE STATE DEPT/HEALTH/HUMAN SERVS | C17: AUGUSTA | D17: ME | E17: 1250000 | F17: 2025 | G17: 2025-09-29 | H17: Strategic Prevention Framework-Partnerships for Success | I17: 2022/09/30-2027/09/29 | J17: SP-22-004 | K17: CSAP (SP) | L17: Continuation / Other | M17: SPF-PFS | N17: Suffix present
A18: SP083356-04 | B18: CITY OF DOVER | C18: DOVER | D18: NH | E18: 375000 | F18: 2025 | G18: 2025-09-29 | H18: Strategic Prevention Framework-Partnerships for Success | I18: 2022/09/30-2027/09/29 | J18: SP-22-004 | K18: CSAP (SP) | L18: Continuation / Other | M18: SPF-PFS | N18: Suffix present
A19: SP083251-04 | B19: VICTORY PROGRAMS, INC. | C19: BOSTON | D19: MA | E19: 248739 | F19: 2025 | G19: 2025-09-29 | H19: Substance Abuse and HIV Prevention Navigator Program for Racial/Ethnic Minorities Cooperative Agreement | I19: 2022/09/30-2027/09/29 | J19: SP-22-002 | K19: CSAP (SP) | L19: Continuation / Other | M19: HIV Prevention | N19: Suffix present
A20: SP082273-05 | B20: WHITTIER STREET HEALTH CENTER, INC. | C20: ROXBURY | D20: MA | E20: 200000 | F20: 2025 | G20: 2025-09-29 | H20: Capacity Building Initiative for Substance Abuse (SA) and HIV Prevention Services for At-Risk Racial/Ethnic Minority Youth and Young Adults | I20: 2021/08/31-2026/08/30 | J20: SP-20-001 | K20: CSAP (SP) | L20: Continuation / Other | M20: HIV Prevention | N20: Suffix present
A21: SP083238-04 | B21: BROCKTON AREA MULTI-SERVICES, INC. | C21: BROCKTON | D21: MA | E21: 249205 | F21: 2025 | G21: 2025-09-29 | H21: Substance Abuse and HIV Prevention Navigator Program for Racial/Ethnic Minorities Cooperative Agreement | I21: 2022/09/30-2027/09/29 | J21: SP-22-002 | K21: CSAP (SP) | L21: Continuation / Other | M21: HIV Prevention | N21: Suffix present
A22: SP082229-05 | B22: WABANAKI HEALTH AND WELLNESS | C22: BANGOR | D22: ME | E22: 200000 | F22: 2025 | G22: 2025-09-29 | H22: Capacity Building Initiative for Substance Abuse (SA) and HIV Prevention Services for At-Risk Racial/Ethnic Minority Youth and Young Adults | I22: 2021/08/31-2026/08/30 | J22: SP-20-001 | K22: CSAP (SP) | L22: Continuation / Other | M22: HIV Prevention | N22: Suffix present
A23: TI087391-02 | B23: VERMONT STATE AGENCY OF HUMAN SERVICES | C23: WATERBURY | D23: VT | E23: 800000 | F23: 2025 | G23: 2025-09-26 | H23: FY 2024 First Responders-Comprehensive Addiction and Recovery Act | I23: 2024/09/30-2028/09/29 | J23: TI-24-006 | K23: Other center (TI) | L23: Continuation / Other | M23: First Responders-CARA | N23: Suffix present
A24: TI087399-02 | B24: CITY OF PROVIDENCE | C24: PROVIDENCE | D24: RI | E24: 572578 | F24: 2025 | G24: 2025-09-26 | H24: FY 2024 First Responders-Comprehensive Addiction and Recovery Act | I24: 2024/09/30-2028/09/29 | J24: TI-24-006 | K24: Other center (TI) | L24: Continuation / Other | M24: First Responders-CARA | N24: Suffix present
A25: SP084975-01 | B25: VERMONT STATE AGENCY OF HUMAN SERVICES | C25: WATERBURY | D25: VT | E25: 2000000 | F25: 2025 | G25: 2025-09-26 | H25: Strategic Prevention Framework Partnership for Success for States | I25: 2025/09/30-2030/09/29 | J25: SP-25-003 | K25: CSAP (SP) | L25: New Start | M25: SPF-PFS | N25: Suffix present
A26: SP084825-01 | B26: REALITY CHECK, INC. | C26: JAFFREY | D26: NH | E26: 60000 | F26: 2025 | G26: 2025-09-26 | H26: Sober Truth on Preventing Underage Drinking Act Grants | I26: 2025/09/30-2029/09/29 | J26: SP-25-001 | K26: CSAP (SP) | L26: New Start | M26: STOP Act | N26: Suffix present
A27: SP084942-01 | B27: YMCA OF THE NORTH SHORE, INC. | C27: BEVERLY | D27: MA | E27: 60000 | F27: 2025 | G27: 2025-09-26 | H27: Sober Truth on Preventing Underage Drinking Act Grants | I27: 2025/09/30-2029/09/29 | J27: SP-25-001 | K27: CSAP (SP) | L27: New Start | M27: STOP Act | N27: Suffix present
A28: SP084639-01 | B28: BOYS & GIRLS CLUB OF BRATTLEBORO INC | C28: BRATTLEBORO | D28: VT | E28: 60000 | F28: 2025 | G28: 2025-09-26 | H28: Sober Truth on Preventing Underage Drinking Act Grants | I28: 2025/09/30-2029/09/29 | J28: SP-25-001 | K28: CSAP (SP) | L28: New Start | M28: STOP Act | N28: Suffix present
A29: SP084634-01 | B29: TOWN OF ENFIELD BOARD OF EDUCATION | C29: ENFIELD | D29: CT | E29: 60000 | F29: 2025 | G29: 2025-09-26 | H29: Sober Truth on Preventing Underage Drinking Act Grants | I29: 2025/09/30-2029/09/29 | J29: SP-25-001 | K29: CSAP (SP) | L29: New Start | M29: STOP Act | N29: Suffix present
A30: SP084615-01 | B30: TRI-COUNTY COMMUNITY ACTION AGENCY | C30: Johnston | D30: RI | E30: 60000 | F30: 2025 | G30: 2025-09-26 | H30: Sober Truth on Preventing Underage Drinking Act Grants | I30: 2025/09/30-2029/09/29 | J30: SP-25-001 | K30: CSAP (SP) | L30: New Start | M30: STOP Act | N30: Suffix present
A31: SP083499-03 | B31: INTERACTION, INC. dba YOUTH SERVICES, INC. | C31: BRATTLEBORO | D31: VT | E31: 56900 | F31: 2025 | G31: 2025-09-26 | H31: FY 2023 Sober Truth on Preventing Underage Drinking Act Grants | I31: 2023/09/30-2027/09/29 | J31: SP-23-002 | K31: CSAP (SP) | L31: Continuation / Other | M31: STOP Act | N31: Suffix present
A32: SP084326-02 | B32: ADCARE EDUCATIONAL INSTITUTE OF MAINE, INC. | C32: AUGUSTA | D32: ME | E32: 739377 | F32: 2025 | G32: 2025-09-25 | H32: FY 2024 Prevention Technology Transfer Centers Cooperative Agreements | I32: 2024/09/30-2029/09/29 | J32: SP-24-002 | K32: CSAP (SP) | L32: Continuation / Other | M32: PTTC | N32: Suffix present
A33: SP084503-02 | B33: DARTMOUTH-HITCHCOCK | C33: LEBANON | D33: NH | E33: 59994 | F33: 2025 | G33: 2025-09-25 | H33: Sober Truth on Preventing Underage Drinking Act Grants | I33: 2024/09/30-2028/09/29 | J33: SP-24-001 | K33: CSAP (SP) | L33: Continuation / Other | M33: STOP Act | N33: Suffix present
A34: SP084348-02 | B34: HIGH POINT TREATMENT CENTER, INC. | C34: NEW BEDFORD | D34: MA | E34: 60000 | F34: 2025 | G34: 2025-09-25 | H34: Sober Truth on Preventing Underage Drinking Act Grants | I34: 2024/09/30-2028/09/29 | J34: SP-24-001 | K34: CSAP (SP) | L34: Continuation / Other | M34: STOP Act | N34: Suffix present
A35: SP084354-02 | B35: NAUGATUCK YOUTH SERVICES, INC. | C35: NAUGATUCK | D35: CT | E35: 60000 | F35: 2025 | G35: 2025-09-25 | H35: Sober Truth on Preventing Underage Drinking Act Grants | I35: 2024/09/30-2028/09/29 | J35: SP-24-001 | K35: CSAP (SP) | L35: Continuation / Other | M35: STOP Act | N35: Suffix present
A36: SP084330-02 | B36: TOWN OF MIDDLETOWN | C36: MIDDLETOWN | D36: RI | E36: 60000 | F36: 2025 | G36: 2025-09-25 | H36: Sober Truth on Preventing Underage Drinking Act Grants | I36: 2024/09/30-2028/09/29 | J36: SP-24-001 | K36: CSAP (SP) | L36: Continuation / Other | M36: STOP Act | N36: Suffix present
A37: SP084341-02 | B37: LYNNFIELD, TOWN OF (INC) | C37: LYNNFIELD | D37: MA | E37: 60000 | F37: 2025 | G37: 2025-09-25 | H37: Sober Truth on Preventing Underage Drinking Act Grants | I37: 2024/09/30-2028/09/29 | J37: SP-24-001 | K37: CSAP (SP) | L37: Continuation / Other | M37: STOP Act | N37: Suffix present
A38: SP084344-02 | B38: TOWN OF ASHLAND | C38: ASHLAND | D38: MA | E38: 60000 | F38: 2025 | G38: 2025-09-25 | H38: Sober Truth on Preventing Underage Drinking Act Grants | I38: 2024/09/30-2028/09/29 | J38: SP-24-001 | K38: CSAP (SP) | L38: Continuation / Other | M38: STOP Act | N38: Suffix present
A39: SP082763-05 | B39: MASSACHUSETTS STATE DEPT OF PUB HEALTH | C39: BOSTON | D39: MA | E39: 384000 | F39: 2025 | G39: 2025-09-25 | H39: Strategic Prevention Framework for Prescription Drugs | I39: 2021/09/30-2026/09/29 | J39: SP-21-001 | K39: CSAP (SP) | L39: Continuation / Other | M39: SPF Prescription Drugs | N39: Suffix present
A40: SP082772-04 | B40: MAINE STATE DEPT/HEALTH/HUMAN SERVS | C40: AUGUSTA | D40: ME | E40: 384000 | F40: 2025 | G40: 2025-09-25 | H40: Strategic Prevention Framework for Prescription Drugs | I40: 2021/09/30-2026/09/29 | J40: SP-21-001 | K40: CSAP (SP) | L40: Continuation / Other | M40: SPF Prescription Drugs | N40: Suffix present
A41: SP084402-02 | B41: TOWN OF WARE | C41: WARE | D41: MA | E41: 60000 | F41: 2025 | G41: 2025-09-25 | H41: Sober Truth on Preventing Underage Drinking Act Grants | I41: 2024/09/30-2028/09/29 | J41: SP-24-001 | K41: CSAP (SP) | L41: Continuation / Other | M41: STOP Act | N41: Suffix present
A42: SP084477-02 | B42: COMMUNITIES FOR ALCOHOL AND DRUG FREE YOUTH, INC. (CADY) | C42: PLYMOUTH | D42: NH | E42: 60000 | F42: 2025 | G42: 2025-09-25 | H42: Sober Truth on Preventing Underage Drinking Act Grants | I42: 2024/09/30-2028/09/29 | J42: SP-24-001 | K42: CSAP (SP) | L42: Continuation / Other | M42: STOP Act | N42: Suffix present
A43: SP083615-03 | B43: OLD COLONY YMCA | C43: BROCKTON | D43: MA | E43: 60000 | F43: 2025 | G43: 2025-09-25 | H43: FY 2023 Sober Truth on Preventing Underage Drinking Act Grants | I43: 2023/09/30-2027/09/29 | J43: SP-23-002 | K43: CSAP (SP) | L43: Continuation / Other | M43: STOP Act | N43: Suffix present
A44: SP083622-03 | B44: MAINEHEALTH | C44: PORTLAND | D44: ME | E44: 60000 | F44: 2025 | G44: 2025-09-25 | H44: FY 2023 Sober Truth on Preventing Underage Drinking Act Grants | I44: 2023/09/30-2027/09/29 | J44: SP-23-002 | K44: CSAP (SP) | L44: Continuation / Other | M44: STOP Act | N44: Suffix present
A45: SP083469-04 | B45: MRH CORP. | C45: DOVER FOXCROFT | D45: ME | E45: 50000 | F45: 2025 | G45: 2025-09-25 | H45: STOP Act Grants | I45: 2022/09/30-2026/09/29 | J45: SP-22-006 | K45: CSAP (SP) | L45: Continuation / Other | M45: STOP Act | N45: Suffix present
A46: SP083332-04 | B46: CONNECTICUT ST DEPT OF MH/ADDICTION SRVS | C46: HARTFORD | D46: CT | E46: 1250000 | F46: 2025 | G46: 2025-09-25 | H46: Strategic Prevention Framework-Partnerships for Success | I46: 2022/09/30-2027/09/29 | J46: SP-22-004 | K46: CSAP (SP) | L46: Continuation / Other | M46: SPF-PFS | N46: Suffix present
A47: SP083435-04 | B47: CITY OF DOVER | C47: DOVER | D47: NH | E47: 50000 | F47: 2025 | G47: 2025-09-25 | H47: STOP Act Grants | I47: 2022/09/30-2026/09/29 | J47: SP-22-006 | K47: CSAP (SP) | L47: Continuation / Other | M47: STOP Act | N47: Suffix present
A48: SP084497-02 | B48: BAY STATE COMMUNITY SERVICES, INC. | C48: QUINCY | D48: MA | E48: 60000 | F48: 2025 | G48: 2025-09-22 | H48: Sober Truth on Preventing Underage Drinking Act Grants | I48: 2024/09/30-2028/09/29 | J48: SP-24-001 | K48: CSAP (SP) | L48: Continuation / Other | M48: STOP Act | N48: Suffix present
A49: SP084436-02 | B49: PINETREE INSTITUTE | C49: ELIOT | D49: ME | E49: 60000 | F49: 2025 | G49: 2025-09-22 | H49: Sober Truth on Preventing Underage Drinking Act Grants | I49: 2024/09/30-2028/09/29 | J49: SP-24-001 | K49: CSAP (SP) | L49: Continuation / Other | M49: STOP Act | N49: Suffix present
A50: SP084442-02 | B50: CITY OF GLOUCESTER | C50: GLOUCESTER | D50: MA | E50: 60000 | F50: 2025 | G50: 2025-09-22 | H50: Sober Truth on Preventing Underage Drinking Act Grants | I50: 2024/09/30-2028/09/29 | J50: SP-24-001 | K50: CSAP (SP) | L50: Continuation / Other | M50: STOP Act | N50: Suffix present
A51: SP084449-02 | B51: L U K CRISIS CENTER, INC. | C51: FITCHBURG | D51: MA | E51: 60000 | F51: 2025 | G51: 2025-09-22 | H51: Sober Truth on Preventing Underage Drinking Act Grants | I51: 2024/09/30-2028/09/29 | J51: SP-24-001 | K51: CSAP (SP) | L51: Continuation / Other | M51: STOP Act | N51: Suffix present
A52: SP083836-03 | B52: AMOSKEAG HEALTH | C52: MANCHESTER | D52: NH | E52: 291166 | F52: 2025 | G52: 2025-09-22 | H52: Strategic Prevention Framework-Partnerships for Success for Communities, Local Governments, Universities, Colleges, and Tribes/Tribal Organizations | I52: 2023/09/30-2028/09/29 | J52: SP-23-004 | K52: CSAP (SP) | L52: Continuation / Other | M52: SPF-PFS | N52: Suffix present
A53: SP084039 | B53: NORTH COUNTRY HEALTH CONSORTIUM, INC. | C53: LITTLETON | D53: NH | E53: 375000 | F53: 2025 | G53: 2025-09-18 | H53: Strategic Prevention Framework-Partnerships for Success for Communities, Local Governments, Universities, Colleges, and Tribes/Tribal Organizations | I53: 2024/09/30-2029/09/29 | J53: SP-23-004 | K53: CSAP (SP) | L53: Continuation / Other | M53: SPF-PFS | N53: Award-year suffix missing in source
A54: SP083978 | B54: HIGH POINT TREATMENT CENTER, INC. | C54: NEW BEDFORD | D54: MA | E54: 375000 | F54: 2025 | G54: 2025-09-18 | H54: Strategic Prevention Framework-Partnerships for Success for Communities, Local Governments, Universities, Colleges, and Tribes/Tribal Organizations | I54: 2024/09/30-2029/09/29 | J54: SP-23-004 | K54: CSAP (SP) | L54: Continuation / Other | M54: SPF-PFS | N54: Award-year suffix missing in source
A55: SP083730 | B55: FRANKLIN REGIONAL COUNCIL OF GOVERNMENTS | C55: GREENFIELD | D55: MA | E55: 375000 | F55: 2025 | G55: 2025-09-18 | H55: Strategic Prevention Framework-Partnerships for Success for Communities, Local Governments, Universities, Colleges, and Tribes/Tribal Organizations | I55: 2023/09/30-2028/09/29 | J55: SP-23-004 | K55: CSAP (SP) | L55: Continuation / Other | M55: SPF-PFS | N55: Award-year suffix missing in source
A56: SP083475 | B56: EAST HADDAM YOUTH AND FAMILY SERVICES | C56: MOODUS | D56: CT | E56: 50000 | F56: 2025 | G56: 2025-09-16 | H56: STOP Act Grants | I56: 2022/09/30-2026/09/29 | J56: SP-22-006 | K56: CSAP (SP) | L56: Continuation / Other | M56: STOP Act | N56: Award-year suffix missing in source
A57: SP083439 | B57: WINDHAM SOUTHWEST SUPERVISORY UNION | C57: WILMINGTON | D57: VT | E57: 50000 | F57: 2025 | G57: 2025-09-16 | H57: STOP Act Grants | I57: 2022/09/30-2026/09/29 | J57: SP-22-006 | K57: CSAP (SP) | L57: Continuation / Other | M57: STOP Act | N57: Award-year suffix missing in source
A58: SP083458 | B58: SOUTHEASTERN REGIONAL ACTION COUNCIL, INC. | C58: NORWICH | D58: CT | E58: 49724 | F58: 2025 | G58: 2025-09-16 | H58: STOP Act Grants | I58: 2022/09/30-2026/09/29 | J58: SP-22-006 | K58: CSAP (SP) | L58: Continuation / Other | M58: STOP Act | N58: Award-year suffix missing in source
A59: SP083379 | B59: HAMPDEN-WILBRAHAM REGIONAL SCHOOL DIST | C59: WILBRAHAM | D59: MA | E59: 49986 | F59: 2025 | G59: 2025-09-16 | H59: STOP Act Grants | I59: 2022/09/30-2026/09/29 | J59: SP-22-006 | K59: CSAP (SP) | L59: Continuation / Other | M59: STOP Act | N59: Award-year suffix missing in source
A60: SP082739 | B60: MAINE STATE DEPT/HEALTH/HUMAN SERVS | C60: AUGUSTA | D60: ME | E60: 684000 | F60: 2025 | G60: 2025-09-15 | H60: Grants to Prevent Prescription Drug/Opioid Overdose-Related Deaths | I60: 2021/08/31-2026/08/30 | J60: SP-21-002 | K60: CSAP (SP) | L60: Continuation / Other | M60: Overdose Prevention | N60: Award-year suffix missing in source
A61: SP082724 | B61: CONNECTICUT ST DEPT OF MH/ADDICTION SRVS | C61: HARTFORD | D61: CT | E61: 850000 | F61: 2025 | G61: 2025-09-15 | H61: Grants to Prevent Prescription Drug/Opioid Overdose-Related Deaths | I61: 2023/08/31-2028/08/30 | J61: SP-21-002 | K61: CSAP (SP) | L61: Continuation / Other | M61: Overdose Prevention | N61: Award-year suffix missing in source
A62: SP082725 | B62: MASSACHUSETTS STATE DEPT OF PUB HEALTH | C62: BOSTON | D62: MA | E62: 486000 | F62: 2025 | G62: 2025-09-15 | H62: Grants to Prevent Prescription Drug/Opioid Overdose-Related Deaths | I62: 2022/08/31-2027/08/30 | J62: SP-21-002 | K62: CSAP (SP) | L62: Continuation / Other | M62: Overdose Prevention | N62: Award-year suffix missing in source
A63: SP082768 | B63: CONNECTICUT ST DEPT OF MH/ADDICTION SRVS | C63: HARTFORD | D63: CT | E63: 384000 | F63: 2025 | G63: 2025-09-15 | H63: Strategic Prevention Framework for Prescription Drugs | I63: 2021/09/30-2026/09/29 | J63: SP-21-001 | K63: CSAP (SP) | L63: Continuation / Other | M63: SPF Prescription Drugs | N63: Award-year suffix missing in source
A64: SP083622-02 | B64: MAINEHEALTH | C64: PORTLAND | D64: ME | E64: 60000 | F64: 2024 | G64: 2024-09-03 | H64: FY 2023 Sober Truth on Preventing Underage Drinking Act Grants | I64: 2023/09/30 - 2027/09/29 | J64: SP-23-002 | K64: CSAP (SP) | L64: Continuation / Other | M64: STOP Act | N64: Suffix present
A65: SP083624-02 | B65: COASTLINE EAP (EMPLOYEE ASSISTANCE PROGRAM) | C65: WARWICK | D65: RI | E65: 60000 | F65: 2024 | G65: 2024-09-03 | H65: FY 2023 Sober Truth on Preventing Underage Drinking Act Grants | I65: 2023/09/30 - 2027/09/29 | J65: SP-23-002 | K65: CSAP (SP) | L65: Continuation / Other | M65: STOP Act | N65: Suffix present
A66: SP083615-02 | B66: OLD COLONY YMCA | C66: BROCKTON | D66: MA | E66: 60000 | F66: 2024 | G66: 2024-09-03 | H66: FY 2023 Sober Truth on Preventing Underage Drinking Act Grants | I66: 2023/09/30 - 2027/09/29 | J66: SP-23-002 | K66: CSAP (SP) | L66: Continuation / Other | M66: STOP Act | N66: Suffix present
A67: SP083570-02 | B67: MEDWAY PUBLIC SCHOOLS | C67: MEDWAY | D67: MA | E67: 53000 | F67: 2024 | G67: 2024-09-03 | H67: FY 2023 Sober Truth on Preventing Underage Drinking Act Grants | I67: 2023/09/30 - 2027/09/29 | J67: SP-23-002 | K67: CSAP (SP) | L67: Continuation / Other | M67: STOP Act | N67: Suffix present
A68: SP083525-02 | B68: TOWN OF STRATFORD | C68: STRATFORD | D68: CT | E68: 60000 | F68: 2024 | G68: 2024-09-03 | H68: FY 2023 Sober Truth on Preventing Underage Drinking Act Grants | I68: 2023/09/30 - 2027/09/29 | J68: SP-23-002 | K68: CSAP (SP) | L68: Continuation / Other | M68: STOP Act | N68: Suffix present
A69: SP083538-02 | B69: UNITED WAY OF ADDISON COUNTY | C69: MIDDLEBURY | D69: VT | E69: 60000 | F69: 2024 | G69: 2024-09-03 | H69: FY 2023 Sober Truth on Preventing Underage Drinking Act Grants | I69: 2023/09/30 - 2027/09/29 | J69: SP-23-002 | K69: CSAP (SP) | L69: Continuation / Other | M69: STOP Act | N69: Suffix present
A70: SP083502-02 | B70: MEDICAL CARE DEVELOPMENT, INC. | C70: AUGUSTA | D70: ME | E70: 60000 | F70: 2024 | G70: 2024-09-03 | H70: FY 2023 Sober Truth on Preventing Underage Drinking Act Grants | I70: 2023/09/30 - 2027/09/29 | J70: SP-23-002 | K70: CSAP (SP) | L70: Continuation / Other | M70: STOP Act | N70: Suffix present
A71: SP083499-02 | B71: YOUTH SERVICES, INC. | C71: BRATTLEBORO | D71: VT | E71: 56900 | F71: 2024 | G71: 2024-09-03 | H71: FY 2023 Sober Truth on Preventing Underage Drinking Act Grants | I71: 2023/09/30 - 2027/09/29 | J71: SP-23-002 | K71: CSAP (SP) | L71: Continuation / Other | M71: STOP Act | N71: Suffix present
A72: SP083488-02 | B72: COMMUNITY AGAINST SUBSTANCE ABUSE | C72: WINTHROP | D72: MA | E72: 60000 | F72: 2024 | G72: 2024-09-03 | H72: FY 2023 Sober Truth on Preventing Underage Drinking Act Grants | I72: 2023/09/30 - 2027/09/29 | J72: SP-23-002 | K72: CSAP (SP) | L72: Continuation / Other | M72: STOP Act | N72: Suffix present
A73: SP083489-02 | B73: SEBASTICOOK VALLEY HEALTH | C73: PITTSFIELD | D73: ME | E73: 60000 | F73: 2024 | G73: 2024-09-03 | H73: FY 2023 Sober Truth on Preventing Underage Drinking Act Grants | I73: 2023/09/30 - 2027/09/29 | J73: SP-23-002 | K73: CSAP (SP) | L73: Continuation / Other | M73: STOP Act | N73: Suffix present
A74: SP082763-04 | B74: MASSACHUSETTS STATE DEPT OF PUB HEALTH | C74: BOSTON | D74: MA | E74: 92836 | F74: 2024 | G74: 2024-09-03 | H74: Strategic Prevention Framework for Prescription Drugs | I74: 2021/09/30 - 2026/09/29 | J74: SP-21-001 | K74: CSAP (SP) | L74: Continuation / Other | M74: SPF Prescription Drugs | N74: Suffix present
A75: SP082694-05 | B75: CITY OF FRANKLIN | C75: FRANKLIN | D75: NH | E75: 218098 | F75: 2024 | G75: 2024-09-03 | H75: Strategic Prevention Framework – Partnerships for Success | I75: 2020/08/31 - 2025/08/30 | J75: SP-20-002 | K75: CSAP (SP) | L75: Continuation / Other | M75: SPF-PFS | N75: Suffix present
A76: SP082550-05 | B76: TOWN OF WARE | C76: WARE | D76: MA | E76: 300000 | F76: 2024 | G76: 2024-09-03 | H76: Strategic Prevention Framework – Partnerships for Success | I76: 2020/08/31 - 2025/08/30 | J76: SP-20-002 | K76: CSAP (SP) | L76: Continuation / Other | M76: SPF-PFS | N76: Suffix present
A77: SP082219-05 | B77: JUSTICE RESOURCE INSTITUTE | C77: NEEDHAM | D77: MA | E77: 25180 | F77: 2024 | G77: 2024-09-03 | H77: Capacity Building Initiative for Substance Abuse (SA) and HIV Prevention Services for At-Risk Racial/Ethnic Minority Youth and Young Adults | I77: 2020/08/31 - 2025/08/30 | J77: SP-20-001 | K77: CSAP (SP) | L77: Continuation / Other | M77: HIV Prevention | N77: Suffix present
A78: SP084503-01 | B78: DARTMOUTH-HITCHCOCK | C78: LEBANON | D78: NH | E78: 60000 | F78: 2024 | G78: 2024-08-30 | H78: Sober Truth on Preventing Underage Drinking Act Grants | I78: 2024/09/30 - 2028/09/29 | J78: SP-24-001 | K78: CSAP (SP) | L78: New Start | M78: STOP Act | N78: Suffix present
A79: SP084497-01 | B79: BAY STATE COMMUNITY SERVICES, INC. | C79: QUINCY | D79: MA | E79: 60000 | F79: 2024 | G79: 2024-08-30 | H79: Sober Truth on Preventing Underage Drinking Act Grants | I79: 2024/09/30 - 2028/09/29 | J79: SP-24-001 | K79: CSAP (SP) | L79: New Start | M79: STOP Act | N79: Suffix present
A80: SP084477-01 | B80: COMMUNITIES FOR ALCOHOL AND DRUG FREE YOUTH, INC. (CADY) | C80: PLYMOUTH | D80: NH | E80: 60000 | F80: 2024 | G80: 2024-08-30 | H80: Sober Truth on Preventing Underage Drinking Act Grants | I80: 2024/09/30 - 2028/09/29 | J80: SP-24-001 | K80: CSAP (SP) | L80: New Start | M80: STOP Act | N80: Suffix present
A81: SP084449-01 | B81: L U K CRISIS CENTER, INC. | C81: FITCHBURG | D81: MA | E81: 60000 | F81: 2024 | G81: 2024-08-30 | H81: Sober Truth on Preventing Underage Drinking Act Grants | I81: 2024/09/30 - 2028/09/29 | J81: SP-24-001 | K81: CSAP (SP) | L81: New Start | M81: STOP Act | N81: Suffix present
A82: SP084436-01 | B82: PINETREE INSTITUTE | C82: ELIOT | D82: ME | E82: 60000 | F82: 2024 | G82: 2024-08-30 | H82: Sober Truth on Preventing Underage Drinking Act Grants | I82: 2024/09/30 - 2028/09/29 | J82: SP-24-001 | K82: CSAP (SP) | L82: New Start | M82: STOP Act | N82: Suffix present
A83: SP084442-01 | B83: CITY OF GLOUCESTER | C83: GLOUCESTER | D83: MA | E83: 60000 | F83: 2024 | G83: 2024-08-30 | H83: Sober Truth on Preventing Underage Drinking Act Grants | I83: 2024/09/30 - 2028/09/29 | J83: SP-24-001 | K83: CSAP (SP) | L83: New Start | M83: STOP Act | N83: Suffix present
A84: SP084399-01 | B84: BRIDGES HEALTHCARE, INC. | C84: MILFORD | D84: CT | E84: 60000 | F84: 2024 | G84: 2024-08-30 | H84: Sober Truth on Preventing Underage Drinking Act Grants | I84: 2024/09/30 - 2025/09/29 | J84: SP-24-001 | K84: CSAP (SP) | L84: New Start | M84: STOP Act | N84: Suffix present
A85: SP084402-01 | B85: TOWN OF WARE | C85: WARE | D85: MA | E85: 60000 | F85: 2024 | G85: 2024-08-30 | H85: Sober Truth on Preventing Underage Drinking Act Grants | I85: 2024/09/30 - 2028/09/29 | J85: SP-24-001 | K85: CSAP (SP) | L85: New Start | M85: STOP Act | N85: Suffix present
A86: SP084405-01 | B86: BRIDGES HEALTHCARE, INC. | C86: MILFORD | D86: CT | E86: 60000 | F86: 2024 | G86: 2024-08-30 | H86: Sober Truth on Preventing Underage Drinking Act Grants | I86: 2024/09/30 - 2025/09/29 | J86: SP-24-001 | K86: CSAP (SP) | L86: New Start | M86: STOP Act | N86: Suffix present
A87: SP084348-01 | B87: HIGH POINT TREATMENT CENTER, INC. | C87: NEW BEDFORD | D87: MA | E87: 60000 | F87: 2024 | G87: 2024-08-30 | H87: Sober Truth on Preventing Underage Drinking Act Grants | I87: 2024/09/30 - 2028/09/29 | J87: SP-24-001 | K87: CSAP (SP) | L87: New Start | M87: STOP Act | N87: Suffix present
A88: SP084354-01 | B88: NAUGATUCK YOUTH SERVICES, INC. | C88: NAUGATUCK | D88: CT | E88: 60000 | F88: 2024 | G88: 2024-08-30 | H88: Sober Truth on Preventing Underage Drinking Act Grants | I88: 2024/09/30 - 2028/09/29 | J88: SP-24-001 | K88: CSAP (SP) | L88: New Start | M88: STOP Act | N88: Suffix present
A89: SP084341-01 | B89: LYNNFIELD, TOWN OF (INC) | C89: LYNNFIELD | D89: MA | E89: 60000 | F89: 2024 | G89: 2024-08-30 | H89: Sober Truth on Preventing Underage Drinking Act Grants | I89: 2024/09/30 - 2028/09/29 | J89: SP-24-001 | K89: CSAP (SP) | L89: New Start | M89: STOP Act | N89: Suffix present
A90: SP084344-01 | B90: TOWN OF ASHLAND | C90: ASHLAND | D90: MA | E90: 60000 | F90: 2024 | G90: 2024-08-30 | H90: Sober Truth on Preventing Underage Drinking Act Grants | I90: 2024/09/30 - 2028/09/29 | J90: SP-24-001 | K90: CSAP (SP) | L90: New Start | M90: STOP Act | N90: Suffix present
A91: SP084330-01 | B91: TOWN OF MIDDLETOWN | C91: MIDDLETOWN | D91: RI | E91: 60000 | F91: 2024 | G91: 2024-08-30 | H91: Sober Truth on Preventing Underage Drinking Act Grants | I91: 2024/09/29 - 2028/09/30 | J91: SP-24-001 | K91: CSAP (SP) | L91: New Start | M91: STOP Act | N91: Suffix present
A92: SP084326-01 | B92: ADCARE EDUCATIONAL INSTITUTE OF MAINE, INC. | C92: AUGUSTA | D92: ME | E92: 739381 | F92: 2024 | G92: 2024-08-28 | H92: FY 2024 Prevention Technology Transfer Centers Cooperative Agreements | I92: 2024/09/30 - 2029/09/29 | J92: SP-24-002 | K92: CSAP (SP) | L92: New Start | M92: PTTC | N92: Suffix present
A93: TI087399-01 | B93: CITY OF PROVIDENCE | C93: PROVIDENCE | D93: RI | E93: 552153 | F93: 2024 | G93: 2024-08-28 | H93: FY 2024 First Responders-Comprehensive Addiction and Recovery Act | I93: 2024/09/30 - 2028/09/29 | J93: TI-24-006 | K93: Other center (TI) | L93: New Start | M93: First Responders-CARA | N93: Suffix present
A94: TI087391-01 | B94: VERMONT STATE AGENCY OF HUMAN SERVICES | C94: WATERBURY | D94: VT | E94: 800000 | F94: 2024 | G94: 2024-08-28 | H94: FY 2024 First Responders-Comprehensive Addiction and Recovery Act | I94: 2024/09/30 - 2028/09/29 | J94: TI-24-006 | K94: Other center (TI) | L94: New Start | M94: First Responders-CARA | N94: Suffix present
A95: SP084169-01 | B95: CENTRAL VERMONT MEDICAL CENTER, INC. | C95: BERLIN | D95: VT | E95: 374922 | F95: 2024 | G95: 2024-08-23 | H95: Strategic Prevention Framework-Partnerships for Success for Communities, Local Governments, Universities, Colleges, and Tribes/Tribal Organizations | I95: 2024/09/30 - 2029/09/29 | J95: SP-23-004 | K95: CSAP (SP) | L95: New Start | M95: SPF-PFS | N95: Suffix present
A96: SP084039-01 | B96: NORTH COUNTRY HEALTH CONSORTIUM, INC. | C96: LITTLETON | D96: NH | E96: 375000 | F96: 2024 | G96: 2024-08-23 | H96: Strategic Prevention Framework-Partnerships for Success for Communities, Local Governments, Universities, Colleges, and Tribes/Tribal Organizations | I96: 2024/09/30 - 2029/09/29 | J96: SP-23-004 | K96: CSAP (SP) | L96: New Start | M96: SPF-PFS | N96: Suffix present
A97: SP083978-01 | B97: HIGH POINT TREATMENT CENTER, INC. | C97: NEW BEDFORD | D97: MA | E97: 375000 | F97: 2024 | G97: 2024-08-23 | H97: Strategic Prevention Framework-Partnerships for Success for Communities, Local Governments, Universities, Colleges, and Tribes/Tribal Organizations | I97: 2024/09/30 - 2029/09/29 | J97: SP-23-004 | K97: CSAP (SP) | L97: New Start | M97: SPF-PFS | N97: Suffix present
A98: SP083836-02 | B98: AMOSKEAG HEALTH | C98: MANCHESTER | D98: NH | E98: 288100 | F98: 2024 | G98: 2024-08-01 | H98: Strategic Prevention Framework-Partnerships for Success for Communities, Local Governments, Universities, Colleges, and Tribes/Tribal Organizations | I98: 2023/09/30 - 2028/09/29 | J98: SP-23-004 | K98: CSAP (SP) | L98: Continuation / Other | M98: SPF-PFS | N98: Suffix present
A99: SP083808-02 | B99: BOSTON PUBLIC HEALTH COMMISSION | C99: BOSTON | D99: MA | E99: 374905 | F99: 2024 | G99: 2024-08-01 | H99: Strategic Prevention Framework-Partnerships for Success for Communities, Local Governments, Universities, Colleges, and Tribes/Tribal Organizations | I99: 2023/09/30 - 2028/09/29 | J99: SP-23-004 | K99: CSAP (SP) | L99: Continuation / Other | M99: SPF-PFS | N99: Suffix present
A100: SP083730-02 | B100: FRANKLIN REGIONAL COUNCIL OF GOVERNMENTS | C100: GREENFIELD | D100: MA | E100: 375000 | F100: 2024 | G100: 2024-08-01 | H100: Strategic Prevention Framework-Partnerships for Success for Communities, Local Governments, Universities, Colleges, and Tribes/Tribal Organizations | I100: 2023/09/30 - 2028/09/29 | J100: SP-23-004 | K100: CSAP (SP) | L100: Continuation / Other | M100: SPF-PFS | N100: Suffix present
A101: SP083469-03 | B101: MRH CORP. | C101: DOVER FOXCROFT | D101: ME | E101: 50000 | F101: 2024 | G101: 2024-08-01 | H101: STOP Act Grants | I101: 2022/09/30 - 2026/09/29 | J101: SP-22-006 | K101: CSAP (SP) | L101: Continuation / Other | M101: STOP Act | N101: Suffix present
A102: SP083475-03 | B102: EAST HADDAM YOUTH AND FAMILY SERVICES | C102: MOODUS | D102: CT | E102: 50000 | F102: 2024 | G102: 2024-08-01 | H102: STOP Act Grants | I102: 2022/09/30 - 2026/09/29 | J102: SP-22-006 | K102: CSAP (SP) | L102: Continuation / Other | M102: STOP Act | N102: Suffix present
A103: SP083458-03 | B103: SOUTHEASTERN REGIONAL ACTION COUNCIL, INC. | C103: NORWICH | D103: CT | E103: 49724 | F103: 2024 | G103: 2024-08-01 | H103: STOP Act Grants | I103: 2022/09/30 - 2026/09/29 | J103: SP-22-006 | K103: CSAP (SP) | L103: Continuation / Other | M103: STOP Act | N103: Suffix present
A104: SP083439-03 | B104: WINDHAM SOUTHWEST SUPERVISORY UNION | C104: WILMINGTON | D104: VT | E104: 50000 | F104: 2024 | G104: 2024-08-01 | H104: STOP Act Grants | I104: 2022/09/30 - 2026/09/29 | J104: SP-22-006 | K104: CSAP (SP) | L104: Continuation / Other | M104: STOP Act | N104: Suffix present
A105: SP083435-03 | B105: CITY OF DOVER | C105: DOVER | D105: NH | E105: 50000 | F105: 2024 | G105: 2024-08-01 | H105: STOP Act Grants | I105: 2022/09/30 - 2026/09/29 | J105: SP-22-006 | K105: CSAP (SP) | L105: Continuation / Other | M105: STOP Act | N105: Suffix present
A106: SP083379-03 | B106: HAMPDEN-WILBRAHAM REGIONAL SCHOOL DIST | C106: WILBRAHAM | D106: MA | E106: 49996 | F106: 2024 | G106: 2024-08-01 | H106: STOP Act Grants | I106: 2022/09/30 - 2026/09/29 | J106: SP-22-006 | K106: CSAP (SP) | L106: Continuation / Other | M106: STOP Act | N106: Suffix present
A107: SP083356-03 | B107: CITY OF DOVER | C107: DOVER | D107: NH | E107: 375000 | F107: 2024 | G107: 2024-08-01 | H107: Strategic Prevention Framework-Partnerships for Success | I107: 2022/09/30 - 2027/09/29 | J107: SP-22-004 | K107: CSAP (SP) | L107: Continuation / Other | M107: SPF-PFS | N107: Suffix present
A108: SP083332-03 | B108: CONNECTICUT ST DEPT OF MH/ADDICTION SRVS | C108: HARTFORD | D108: CT | E108: 1250000 | F108: 2024 | G108: 2024-08-01 | H108: Strategic Prevention Framework-Partnerships for Success | I108: 2022/09/30 - 2027/09/29 | J108: SP-22-004 | K108: CSAP (SP) | L108: Continuation / Other | M108: SPF-PFS | N108: Suffix present
A109: SP083346-03 | B109: MAINE STATE DEPT/HEALTH/HUMAN SERVS | C109: AUGUSTA | D109: ME | E109: 1070854 | F109: 2024 | G109: 2024-08-01 | H109: Strategic Prevention Framework-Partnerships for Success | I109: 2022/09/30 - 2027/09/29 | J109: SP-22-004 | K109: CSAP (SP) | L109: Continuation / Other | M109: SPF-PFS | N109: Suffix present
A110: SP083251-03 | B110: VICTORY PROGRAMS, INC. | C110: BOSTON | D110: MA | E110: 248739 | F110: 2024 | G110: 2024-08-01 | H110: Substance Abuse and HIV Prevention Navigator Program for Racial/Ethnic Minorities Cooperative Agreement | I110: 2022/09/30 - 2027/09/29 | J110: SP-22-002 | K110: CSAP (SP) | L110: Continuation / Other | M110: HIV Prevention | N110: Suffix present
A111: SP083238-03 | B111: BROCKTON AREA MULTI-SERVICES, INC. | C111: BROCKTON | D111: MA | E111: 249205 | F111: 2024 | G111: 2024-08-01 | H111: Substance Abuse and HIV Prevention Navigator Program for Racial/Ethnic Minorities Cooperative Agreement | I111: 2022/09/30 - 2027/09/29 | J111: SP-22-002 | K111: CSAP (SP) | L111: Continuation / Other | M111: HIV Prevention | N111: Suffix present
A112: SP082772-03 | B112: MAINE STATE DEPT/HEALTH/HUMAN SERVS | C112: AUGUSTA | D112: ME | E112: 384000 | F112: 2024 | G112: 2024-08-01 | H112: Strategic Prevention Framework for Prescription Drugs | I112: 2021/09/30 - 2026/09/29 | J112: SP-21-001 | K112: CSAP (SP) | L112: Continuation / Other | M112: SPF Prescription Drugs | N112: Suffix present
A113: SP082768-04 | B113: CONNECTICUT ST DEPT OF MH/ADDICTION SRVS | C113: HARTFORD | D113: CT | E113: 384000 | F113: 2024 | G113: 2024-08-01 | H113: Strategic Prevention Framework for Prescription Drugs | I113: 2021/09/30 - 2026/09/29 | J113: SP-21-001 | K113: CSAP (SP) | L113: Continuation / Other | M113: SPF Prescription Drugs | N113: Suffix present
A114: SP082739-04 | B114: MAINE STATE DEPT/HEALTH/HUMAN SERVS | C114: AUGUSTA | D114: ME | E114: 850000 | F114: 2024 | G114: 2024-08-01 | H114: Grants to Prevent Prescription Drug/Opioid Overdose-Related Deaths | I114: 2021/08/31 - 2026/08/30 | J114: SP-21-002 | K114: CSAP (SP) | L114: Continuation / Other | M114: Overdose Prevention | N114: Suffix present
A115: SP082724-02 | B115: CONNECTICUT ST DEPT OF MH/ADDICTION SRVS | C115: HARTFORD | D115: CT | E115: 850000 | F115: 2024 | G115: 2024-08-01 | H115: Grants to Prevent Prescription Drug/Opioid Overdose-Related Deaths | I115: 2023/08/31 - 2028/08/30 | J115: SP-21-002 | K115: CSAP (SP) | L115: Continuation / Other | M115: Overdose Prevention | N115: Suffix present
A116: SP082725-03 | B116: MASSACHUSETTS STATE DEPT OF PUB HEALTH | C116: BOSTON | D116: MA | E116: 850000 | F116: 2024 | G116: 2024-08-01 | H116: Grants to Prevent Prescription Drug/Opioid Overdose-Related Deaths | I116: 2022/08/31 - 2027/08/30 | J116: SP-21-002 | K116: CSAP (SP) | L116: Continuation / Other | M116: Overdose Prevention | N116: Suffix present
A117: SP082568-05 | B117: COLLABORATIVE FOR EDUCATIONAL SERVICES | C117: NORTHAMPTON | D117: MA | E117: 300000 | F117: 2024 | G117: 2024-08-01 | H117: Strategic Prevention Framework – Partnerships for Success | I117: 2020/08/31 - 2025/08/30 | J117: SP-20-002 | K117: CSAP (SP) | L117: Continuation / Other | M117: SPF-PFS | N117: Suffix present
A118: SP082546-05 | B118: MOUNTAIN COMMUNITIES SUPPORTING EDUCATION, INC. | C118: LONDONDERRY | D118: VT | E118: 300000 | F118: 2024 | G118: 2024-08-01 | H118: Strategic Prevention Framework – Partnerships for Success | I118: 2020/08/31 - 2025/08/30 | J118: SP-20-002 | K118: CSAP (SP) | L118: Continuation / Other | M118: SPF-PFS | N118: Suffix present
A119: SP082479-05 | B119: BRIDGES HEALTHCARE, INC. | C119: MILFORD | D119: CT | E119: 300000 | F119: 2024 | G119: 2024-08-01 | H119: Strategic Prevention Framework – Partnerships for Success | I119: 2020/08/31 - 2025/08/30 | J119: SP-20-002 | K119: CSAP (SP) | L119: Continuation / Other | M119: SPF-PFS | N119: Suffix present
A120: SP082504-05 | B120: VERMONT STATE AGENCY OF HUMAN SERVICES | C120: WATERBURY | D120: VT | E120: 1000000 | F120: 2024 | G120: 2024-08-01 | H120: Strategic Prevention Framework – Partnerships for Success | I120: 2020/08/31 - 2025/08/30 | J120: SP-20-002 | K120: CSAP (SP) | L120: Continuation / Other | M120: SPF-PFS | N120: Suffix present
A121: SP082391-05 | B121: CITY OF PROVIDENCE | C121: PROVIDENCE | D121: RI | E121: 300000 | F121: 2024 | G121: 2024-08-01 | H121: Strategic Prevention Framework – Partnerships for Success | I121: 2020/08/31 - 2025/08/30 | J121: SP-20-002 | K121: CSAP (SP) | L121: Continuation / Other | M121: SPF-PFS | N121: Suffix present
A122: SP082290-05 | B122: MULTICULTURAL AIDS COALITION | C122: Roxbury | D122: MA | E122: 200000 | F122: 2024 | G122: 2024-08-01 | H122: Capacity Building Initiative for Substance Abuse (SA) and HIV Prevention Services for At-Risk Racial/Ethnic Minority Youth and Young Adults | I122: 2020/08/31 - 2025/08/30 | J122: SP-20-001 | K122: CSAP (SP) | L122: Continuation / Other | M122: HIV Prevention | N122: Suffix present
A123: SP082280-04 | B123: PERCEPTION PROGRAMS, INC. | C123: WILLIMANTIC | D123: CT | E123: 200000 | F123: 2024 | G123: 2024-08-01 | H123: Capacity Building Initiative for Substance Abuse (SA) and HIV Prevention Services for At-Risk Racial/Ethnic Minority Youth and Young Adults | I123: 2021/08/31 - 2026/08/30 | J123: SP-20-001 | K123: CSAP (SP) | L123: Continuation / Other | M123: HIV Prevention | N123: Suffix present
A124: SP082273-04 | B124: WHITTIER STREET HEALTH CENTER, INC. | C124: ROXBURY | D124: MA | E124: 200000 | F124: 2024 | G124: 2024-08-01 | H124: Capacity Building Initiative for Substance Abuse (SA) and HIV Prevention Services for At-Risk Racial/Ethnic Minority Youth and Young Adults | I124: 2021/08/31 - 2026/08/30 | J124: SP-20-001 | K124: CSAP (SP) | L124: Continuation / Other | M124: HIV Prevention | N124: Suffix present
A125: SP082229-04 | B125: WABANAKI HEALTH AND WELLNESS | C125: BANGOR | D125: ME | E125: 200000 | F125: 2024 | G125: 2024-08-01 | H125: Capacity Building Initiative for Substance Abuse (SA) and HIV Prevention Services for At-Risk Racial/Ethnic Minority Youth and Young Adults | I125: 2021/08/31 - 2026/08/30 | J125: SP-20-001 | K125: CSAP (SP) | L125: Continuation / Other | M125: HIV Prevention | N125: Suffix present
A126: SP083684-02 | B126: RHODE ISLAND DEPT OF BEHAVIORAL HEALTHCARE/DEVELOPMENTAL DISABILITIES/HOSP | C126: CRANSTON | D126: RI | E126: 1250000 | F126: 2024 | G126: 2024-07-02 | H126: FY 2023 Strategic Prevention Framework-Partnerships for Success for States | I126: 2023/09/30 - 2028/09/29 | J126: SP-23-003 | K126: CSAP (SP) | L126: Continuation / Other | M126: SPF-PFS | N126: Suffix present
A127: SP081223-04 | B127: TOWN OF NEEDHAM | C127: NEEDHAM | D127: MA | E127: 50000 | F127: 2024 | G127: 2024-04-02 | H127: Sober Truth on Preventing Underage Drinking Act Grants | I127: 2021/04/30 - 2025/04/29 | J127: SP-19-003 | K127: CSAP (SP) | L127: Continuation / Other | M127: STOP Act | N127: Suffix present
A128: SP083836-01 | B128: AMOSKEAG HEALTH | C128: MANCHESTER | D128: NH | E128: 374384 | F128: 2023 | G128: 2023-09-19 | H128: Strategic Prevention Framework-Partnerships for Success for Communities, Local Governments, Universities, Colleges, and Tribes/Tribal Organizations | I128: 2023/09/30 - 2028/09/29 | J128: SP-23-004 | K128: CSAP (SP) | L128: New Start | M128: SPF-PFS | N128: Suffix present
A129: SP083808-01 | B129: BOSTON PUBLIC HEALTH COMMISSION | C129: BOSTON | D129: MA | E129: 374905 | F129: 2023 | G129: 2023-09-19 | H129: Strategic Prevention Framework-Partnerships for Success for Communities, Local Governments, Universities, Colleges, and Tribes/Tribal Organizations | I129: 2023/09/30 - 2028/09/29 | J129: SP-23-004 | K129: CSAP (SP) | L129: New Start | M129: SPF-PFS | N129: Suffix present
A130: SP083730-01 | B130: FRANKLIN REGIONAL COUNCIL OF GOVERNMENTS | C130: GREENFIELD | D130: MA | E130: 375000 | F130: 2023 | G130: 2023-09-19 | H130: Strategic Prevention Framework-Partnerships for Success for Communities, Local Governments, Universities, Colleges, and Tribes/Tribal Organizations | I130: 2023/09/30 - 2028/09/29 | J130: SP-23-004 | K130: CSAP (SP) | L130: New Start | M130: SPF-PFS | N130: Suffix present
A131: SP083684-01 | B131: RHODE ISLAND DEPT OF BEHAVIORAL HEALTHCARE/DEVELOPMENTAL DISABILITIES/HOSP | C131: CRANSTON | D131: RI | E131: 1250000 | F131: 2023 | G131: 2023-09-19 | H131: FY 2023 Strategic Prevention Framework-Partnerships for Success for States | I131: 2023/09/30 - 2028/09/29 | J131: SP-23-003 | K131: CSAP (SP) | L131: New Start | M131: SPF-PFS | N131: Suffix present
A132: SP083469-02 | B132: MRH CORP. | C132: DOVER FOXCROFT | D132: ME | E132: 50000 | F132: 2023 | G132: 2023-09-05 | H132: STOP Act Grants | I132: 2022/09/30 - 2026/09/29 | J132: SP-22-006 | K132: CSAP (SP) | L132: Continuation / Other | M132: STOP Act | N132: Suffix present
A133: SP083475-02 | B133: EAST HADDAM YOUTH AND FAMILY SERVICES | C133: MOODUS | D133: CT | E133: 50000 | F133: 2023 | G133: 2023-09-05 | H133: STOP Act Grants | I133: 2022/09/30 - 2026/09/29 | J133: SP-22-006 | K133: CSAP (SP) | L133: Continuation / Other | M133: STOP Act | N133: Suffix present
A134: SP083439-02 | B134: WINDHAM SOUTHWEST SUPERVISORY UNION | C134: WILMINGTON | D134: VT | E134: 50000 | F134: 2023 | G134: 2023-09-05 | H134: STOP Act Grants | I134: 2022/09/30 - 2026/09/29 | J134: SP-22-006 | K134: CSAP (SP) | L134: Continuation / Other | M134: STOP Act | N134: Suffix present
A135: SP083458-02 | B135: SOUTHEASTERN REGIONAL ACTION COUNCIL, INC. | C135: NORWICH | D135: CT | E135: 49724 | F135: 2023 | G135: 2023-09-05 | H135: STOP Act Grants | I135: 2022/09/30 - 2026/09/29 | J135: SP-22-006 | K135: CSAP (SP) | L135: Continuation / Other | M135: STOP Act | N135: Suffix present
A136: SP083435-02 | B136: CITY OF DOVER | C136: DOVER | D136: NH | E136: 50000 | F136: 2023 | G136: 2023-09-05 | H136: STOP Act Grants | I136: 2022/09/30 - 2026/09/29 | J136: SP-22-006 | K136: CSAP (SP) | L136: Continuation / Other | M136: STOP Act | N136: Suffix present
A137: SP083379-02 | B137: HAMPDEN-WILBRAHAM REGIONAL SCHOOL DIST | C137: WILBRAHAM | D137: MA | E137: 49928 | F137: 2023 | G137: 2023-09-05 | H137: STOP Act Grants | I137: 2022/09/30 - 2026/09/29 | J137: SP-22-006 | K137: CSAP (SP) | L137: Continuation / Other | M137: STOP Act | N137: Suffix present
A138: SP083346-02 | B138: MAINE STATE DEPT/HEALTH/HUMAN SERVS | C138: AUGUSTA | D138: ME | E138: 1250000 | F138: 2023 | G138: 2023-09-05 | H138: Strategic Prevention Framework-Partnerships for Success | I138: 2022/09/30 - 2027/09/29 | J138: SP-22-004 | K138: CSAP (SP) | L138: Continuation / Other | M138: SPF-PFS | N138: Suffix present
A139: SP083356-02 | B139: CITY OF DOVER | C139: DOVER | D139: NH | E139: 375000 | F139: 2023 | G139: 2023-09-05 | H139: Strategic Prevention Framework-Partnerships for Success | I139: 2022/09/30 - 2027/09/29 | J139: SP-22-004 | K139: CSAP (SP) | L139: Continuation / Other | M139: SPF-PFS | N139: Suffix present
A140: SP083332-02 | B140: CONNECTICUT ST DEPT OF MH/ADDICTION SRVS | C140: HARTFORD | D140: CT | E140: 1250000 | F140: 2023 | G140: 2023-09-05 | H140: Strategic Prevention Framework-Partnerships for Success | I140: 2022/09/30 - 2027/09/29 | J140: SP-22-004 | K140: CSAP (SP) | L140: Continuation / Other | M140: SPF-PFS | N140: Suffix present
A141: SP083251-02 | B141: VICTORY PROGRAMS, INC. | C141: BOSTON | D141: MA | E141: 248739 | F141: 2023 | G141: 2023-09-05 | H141: Substance Abuse and HIV Prevention Navigator Program for Racial/Ethnic Minorities Cooperative Agreement | I141: 2022/09/30 - 2027/09/29 | J141: SP-22-002 | K141: CSAP (SP) | L141: Continuation / Other | M141: HIV Prevention | N141: Suffix present
A142: SP083238-02 | B142: BROCKTON AREA MULTI-SERVICES, INC. | C142: BROCKTON | D142: MA | E142: 249205 | F142: 2023 | G142: 2023-09-05 | H142: Substance Abuse and HIV Prevention Navigator Program for Racial/Ethnic Minorities Cooperative Agreement | I142: 2022/09/30 - 2027/09/29 | J142: SP-22-002 | K142: CSAP (SP) | L142: Continuation / Other | M142: HIV Prevention | N142: Suffix present
A143: SP082772-02 | B143: MAINE STATE DEPT/HEALTH/HUMAN SERVS | C143: AUGUSTA | D143: ME | E143: 384000 | F143: 2023 | G143: 2023-09-05 | H143: Strategic Prevention Framework for Prescription Drugs | I143: 2021/09/30 - 2026/09/29 | J143: SP-21-001 | K143: CSAP (SP) | L143: Continuation / Other | M143: SPF Prescription Drugs | N143: Suffix present
A144: SP082768-03 | B144: CONNECTICUT ST DEPT OF MH/ADDICTION SRVS | C144: HARTFORD | D144: CT | E144: 384000 | F144: 2023 | G144: 2023-09-05 | H144: Strategic Prevention Framework for Prescription Drugs | I144: 2021/09/30 - 2026/09/29 | J144: SP-21-001 | K144: CSAP (SP) | L144: Continuation / Other | M144: SPF Prescription Drugs | N144: Suffix present
A145: SP082763-03 | B145: MASSACHUSETTS STATE DEPT OF PUB HEALTH | C145: BOSTON | D145: MA | E145: 384000 | F145: 2023 | G145: 2023-09-05 | H145: Strategic Prevention Framework for Prescription Drugs | I145: 2021/09/30 - 2026/09/29 | J145: SP-21-001 | K145: CSAP (SP) | L145: Continuation / Other | M145: SPF Prescription Drugs | N145: Suffix present
A146: SP082694-04 | B146: CITY OF FRANKLIN | C146: FRANKLIN | D146: NH | E146: 300000 | F146: 2023 | G146: 2023-09-05 | H146: Strategic Prevention Framework – Partnerships for Success | I146: 2020/08/31 - 2025/08/30 | J146: SP-20-002 | K146: CSAP (SP) | L146: Continuation / Other | M146: SPF-PFS | N146: Suffix present
A147: SP082568-04 | B147: COLLABORATIVE FOR EDUCATIONAL SERVICES | C147: NORTHAMPTON | D147: MA | E147: 300000 | F147: 2023 | G147: 2023-09-05 | H147: Strategic Prevention Framework – Partnerships for Success | I147: 2020/08/31 - 2025/08/30 | J147: SP-20-002 | K147: CSAP (SP) | L147: Continuation / Other | M147: SPF-PFS | N147: Suffix present
A148: SP082546-04 | B148: MOUNTAIN COMMUNITIES SUPPORTING EDUCATION, INC. | C148: LONDONDERRY | D148: VT | E148: 300000 | F148: 2023 | G148: 2023-09-05 | H148: Strategic Prevention Framework – Partnerships for Success | I148: 2020/08/31 - 2025/08/30 | J148: SP-20-002 | K148: CSAP (SP) | L148: Continuation / Other | M148: SPF-PFS | N148: Suffix present
A149: SP082550-04 | B149: TOWN OF WARE | C149: WARE | D149: MA | E149: 300000 | F149: 2023 | G149: 2023-09-05 | H149: Strategic Prevention Framework – Partnerships for Success | I149: 2020/08/31 - 2025/08/30 | J149: SP-20-002 | K149: CSAP (SP) | L149: Continuation / Other | M149: SPF-PFS | N149: Suffix present
A150: SP082504-04 | B150: VERMONT STATE AGENCY OF HUMAN SERVICES | C150: WATERBURY | D150: VT | E150: 1000000 | F150: 2023 | G150: 2023-09-05 | H150: Strategic Prevention Framework – Partnerships for Success | I150: 2020/08/31 - 2025/08/30 | J150: SP-20-002 | K150: CSAP (SP) | L150: Continuation / Other | M150: SPF-PFS | N150: Suffix present
A151: SP082479-04 | B151: BRIDGES HEALTHCARE, INC. | C151: MILFORD | D151: CT | E151: 300000 | F151: 2023 | G151: 2023-09-05 | H151: Strategic Prevention Framework – Partnerships for Success | I151: 2020/08/31 - 2025/08/30 | J151: SP-20-002 | K151: CSAP (SP) | L151: Continuation / Other | M151: SPF-PFS | N151: Suffix present
A152: SP082391-04 | B152: CITY OF PROVIDENCE | C152: PROVIDENCE | D152: RI | E152: 300000 | F152: 2023 | G152: 2023-09-05 | H152: Strategic Prevention Framework – Partnerships for Success | I152: 2020/08/31 - 2025/08/30 | J152: SP-20-002 | K152: CSAP (SP) | L152: Continuation / Other | M152: SPF-PFS | N152: Suffix present
A153: SP082290-04 | B153: MULTICULTURAL AIDS COALITION | C153: Roxbury | D153: MA | E153: 200000 | F153: 2023 | G153: 2023-09-05 | H153: Capacity Building Initiative for Substance Abuse (SA) and HIV Prevention Services for At-Risk Racial/Ethnic Minority Youth and Young Adults | I153: 2020/08/31 - 2025/08/30 | J153: SP-20-001 | K153: CSAP (SP) | L153: Continuation / Other | M153: HIV Prevention | N153: Suffix present
A154: SP082280-03 | B154: PERCEPTION PROGRAMS, INC. | C154: WILLIMANTIC | D154: CT | E154: 200000 | F154: 2023 | G154: 2023-09-05 | H154: Capacity Building Initiative for Substance Abuse (SA) and HIV Prevention Services for At-Risk Racial/Ethnic Minority Youth and Young Adults | I154: 2021/08/31 - 2026/08/30 | J154: SP-20-001 | K154: CSAP (SP) | L154: Continuation / Other | M154: HIV Prevention | N154: Suffix present
A155: SP082219-04 | B155: JUSTICE RESOURCE INSTITUTE | C155: NEEDHAM | D155: MA | E155: 196965 | F155: 2023 | G155: 2023-09-05 | H155: Capacity Building Initiative for Substance Abuse (SA) and HIV Prevention Services for At-Risk Racial/Ethnic Minority Youth and Young Adults | I155: 2020/08/31 - 2025/08/30 | J155: SP-20-001 | K155: CSAP (SP) | L155: Continuation / Other | M155: HIV Prevention | N155: Suffix present
A156: SP081724-05 | B156: WABANAKI HEALTH AND WELLNESS | C156: BANGOR | D156: ME | E156: 299946 | F156: 2023 | G156: 2023-09-05 | H156: Strategic Prevention Framework – Partnerships for Success | I156: 2019/09/30 - 2024/09/29 | J156: SP-19-004 | K156: CSAP (SP) | L156: Continuation / Other | M156: SPF-PFS | N156: Suffix present
A157: SP081695-05 | B157: HEALTHY ACADIA | C157: ELLSWORTH | D157: ME | E157: 300000 | F157: 2023 | G157: 2023-09-05 | H157: Strategic Prevention Framework – Partnerships for Success | I157: 2019/09/30 - 2024/09/29 | J157: SP-19-004 | K157: CSAP (SP) | L157: Continuation / Other | M157: SPF-PFS | N157: Suffix present
A158: SP081658-05 | B158: NFI VERMONT, INC. | C158: SOUTH BURLINGTON | D158: VT | E158: 300000 | F158: 2023 | G158: 2023-09-05 | H158: Strategic Prevention Framework – Partnerships for Success | I158: 2019/09/30 - 2024/09/29 | J158: SP-19-004 | K158: CSAP (SP) | L158: Continuation / Other | M158: SPF-PFS | N158: Suffix present
A159: SP081663-05 | B159: UNITED WAY OF ADDISON COUNTY | C159: MIDDLEBURY | D159: VT | E159: 287434 | F159: 2023 | G159: 2023-09-05 | H159: Strategic Prevention Framework – Partnerships for Success | I159: 2019/09/30 - 2024/09/29 | J159: SP-19-004 | K159: CSAP (SP) | L159: Continuation / Other | M159: SPF-PFS | N159: Suffix present
A160: SP081645-05 | B160: MASHANTUCKET PEQUOT TRIBAL NATION | C160: MASHANTUCKET | D160: CT | E160: 288052 | F160: 2023 | G160: 2023-09-05 | H160: Strategic Prevention Framework – Partnerships for Success | I160: 2019/09/30 - 2024/09/29 | J160: SP-19-004 | K160: CSAP (SP) | L160: Continuation / Other | M160: SPF-PFS | N160: Suffix present
A161: SP081650-05 | B161: COMMUNITIES FOR ALCOHOL AND DRUG FREE YOUTH, INC. (CADY) | C161: PLYMOUTH | D161: NH | E161: 299990 | F161: 2023 | G161: 2023-09-05 | H161: Strategic Prevention Framework – Partnerships for Success | I161: 2019/09/30 - 2024/09/29 | J161: SP-19-004 | K161: CSAP (SP) | L161: Continuation / Other | M161: SPF-PFS | N161: Suffix present
A162: SP081632-05 | B162: VILLAGE FOR FAMILIES AND CHILDREN, INC. | C162: HARTFORD | D162: CT | E162: 300000 | F162: 2023 | G162: 2023-09-05 | H162: Strategic Prevention Framework – Partnerships for Success | I162: 2019/09/30 - 2024/09/29 | J162: SP-19-004 | K162: CSAP (SP) | L162: Continuation / Other | M162: SPF-PFS | N162: Suffix present
A163: SP081537-05 | B163: CLINTON, TOWN OF | C163: CLINTON | D163: CT | E163: 286389 | F163: 2023 | G163: 2023-09-05 | H163: Strategic Prevention Framework – Partnerships for Success | I163: 2019/09/30 - 2024/09/29 | J163: SP-19-004 | K163: CSAP (SP) | L163: Continuation / Other | M163: SPF-PFS | N163: Suffix present
A164: SP081511-05 | B164: OPPORTUNITY ALLIANCE | C164: PORTLAND | D164: ME | E164: 300000 | F164: 2023 | G164: 2023-09-05 | H164: Strategic Prevention Framework – Partnerships for Success | I164: 2019/09/30 - 2024/09/29 | J164: SP-19-004 | K164: CSAP (SP) | L164: Continuation / Other | M164: SPF-PFS | N164: Suffix present
A165: SP081512-05 | B165: L U K CRISIS CENTER, INC. | C165: FITCHBURG | D165: MA | E165: 300000 | F165: 2023 | G165: 2023-09-05 | H165: Strategic Prevention Framework – Partnerships for Success | I165: 2019/09/30 - 2024/09/29 | J165: SP-19-004 | K165: CSAP (SP) | L165: Continuation / Other | M165: SPF-PFS | N165: Suffix present
A166: SP081298-05 | B166: HIGH POINT TREATMENT CENTER, INC. | C166: NEW BEDFORD | D166: MA | E166: 236129 | F166: 2023 | G166: 2023-09-05 | H166: Strategic Prevention Framework – Partnerships for Success | I166: 2019/09/30 - 2024/09/29 | J166: SP-19-004 | K166: CSAP (SP) | L166: Continuation / Other | M166: SPF-PFS | N166: Suffix present
A167: SP081318-05 | B167: SOUTHEASTERN REGIONAL ACTION COUNCIL, INC. | C167: NORWICH | D167: CT | E167: 297302 | F167: 2023 | G167: 2023-09-05 | H167: Strategic Prevention Framework – Partnerships for Success | I167: 2019/09/30 - 2024/09/29 | J167: SP-19-004 | K167: CSAP (SP) | L167: Continuation / Other | M167: SPF-PFS | N167: Suffix present
A168: SP081337-05 | B168: LYNNFIELD, TOWN OF (INC) | C168: LYNNFIELD | D168: MA | E168: 275000 | F168: 2023 | G168: 2023-09-05 | H168: Strategic Prevention Framework – Partnerships for Success | I168: 2019/09/30 - 2024/09/29 | J168: SP-19-004 | K168: CSAP (SP) | L168: Continuation / Other | M168: SPF-PFS | N168: Suffix present
A169: SP081272-05 | B169: CITY OF GLOUCESTER | C169: GLOUCESTER | D169: MA | E169: 256113 | F169: 2023 | G169: 2023-09-05 | H169: Strategic Prevention Framework – Partnerships for Success | I169: 2019/09/30 - 2024/09/29 | J169: SP-19-004 | K169: CSAP (SP) | L169: Continuation / Other | M169: SPF-PFS | N169: Suffix present
A170: SP082739-03 | B170: MAINE STATE DEPT/HEALTH/HUMAN SERVS | C170: AUGUSTA | D170: ME | E170: 850000 | F170: 2023 | G170: 2023-07-31 | H170: Grants to Prevent Prescription Drug/Opioid Overdose-Related Deaths | I170: 2021/08/31 - 2026/08/30 | J170: SP-21-002 | K170: CSAP (SP) | L170: Continuation / Other | M170: Overdose Prevention | N170: Suffix present
A171: SP082725-02 | B171: MASSACHUSETTS STATE DEPT OF PUB HEALTH | C171: BOSTON | D171: MA | E171: 850000 | F171: 2023 | G171: 2023-07-31 | H171: Grants to Prevent Prescription Drug/Opioid Overdose-Related Deaths | I171: 2022/08/31 - 2027/08/30 | J171: SP-21-002 | K171: CSAP (SP) | L171: Continuation / Other | M171: Overdose Prevention | N171: Suffix present
A172: SP082273-03 | B172: WHITTIER STREET HEALTH CENTER, INC. | C172: ROXBURY | D172: MA | E172: 200000 | F172: 2023 | G172: 2023-07-31 | H172: Capacity Building Initiative for Substance Abuse (SA) and HIV Prevention Services for At-Risk Racial/Ethnic Minority Youth and Young Adults | I172: 2021/08/31 - 2026/08/30 | J172: SP-20-001 | K172: CSAP (SP) | L172: Continuation / Other | M172: HIV Prevention | N172: Suffix present
A173: SP082229-03 | B173: WABANAKI HEALTH AND WELLNESS | C173: BANGOR | D173: ME | E173: 200000 | F173: 2023 | G173: 2023-07-31 | H173: Capacity Building Initiative for Substance Abuse (SA) and HIV Prevention Services for At-Risk Racial/Ethnic Minority Youth and Young Adults | I173: 2021/08/31 - 2026/08/30 | J173: SP-20-001 | K173: CSAP (SP) | L173: Continuation / Other | M173: HIV Prevention | N173: Suffix present
A174: SP083622-01 | B174: MAINEHEALTH | C174: PORTLAND | D174: ME | E174: 60000 | F174: 2023 | G174: 2023-07-18 | H174: FY 2023 Sober Truth on Preventing Underage Drinking Act Grants | I174: 2023/09/30 - 2027/09/29 | J174: SP-23-002 | K174: CSAP (SP) | L174: New Start | M174: STOP Act | N174: Suffix present
A175: SP083624-01 | B175: COASTLINE EAP (EMPLOYEE ASSISTANCE PROGRAM) | C175: WARWICK | D175: RI | E175: 60000 | F175: 2023 | G175: 2023-07-18 | H175: FY 2023 Sober Truth on Preventing Underage Drinking Act Grants | I175: 2023/09/30 - 2027/09/29 | J175: SP-23-002 | K175: CSAP (SP) | L175: New Start | M175: STOP Act | N175: Suffix present
A176: SP083615-01 | B176: OLD COLONY YMCA | C176: BROCKTON | D176: MA | E176: 60000 | F176: 2023 | G176: 2023-07-18 | H176: FY 2023 Sober Truth on Preventing Underage Drinking Act Grants | I176: 2023/09/30 - 2027/09/29 | J176: SP-23-002 | K176: CSAP (SP) | L176: New Start | M176: STOP Act | N176: Suffix present
A177: SP083570-01 | B177: MEDWAY PUBLIC SCHOOLS | C177: MEDWAY | D177: MA | E177: 51489 | F177: 2023 | G177: 2023-07-18 | H177: FY 2023 Sober Truth on Preventing Underage Drinking Act Grants | I177: 2023/09/30 - 2027/09/29 | J177: SP-23-002 | K177: CSAP (SP) | L177: New Start | M177: STOP Act | N177: Suffix present
A178: SP083525-01 | B178: TOWN OF STRATFORD | C178: STRATFORD | D178: CT | E178: 60000 | F178: 2023 | G178: 2023-07-18 | H178: FY 2023 Sober Truth on Preventing Underage Drinking Act Grants | I178: 2023/09/30 - 2027/09/29 | J178: SP-23-002 | K178: CSAP (SP) | L178: New Start | M178: STOP Act | N178: Suffix present
A179: SP083538-01 | B179: UNITED WAY OF ADDISON COUNTY | C179: MIDDLEBURY | D179: VT | E179: 60000 | F179: 2023 | G179: 2023-07-18 | H179: FY 2023 Sober Truth on Preventing Underage Drinking Act Grants | I179: 2023/09/30 - 2027/09/30 | J179: SP-23-002 | K179: CSAP (SP) | L179: New Start | M179: STOP Act | N179: Suffix present
A180: SP083499-01 | B180: YOUTH SERVICES, INC. | C180: BRATTLEBORO | D180: VT | E180: 56900 | F180: 2023 | G180: 2023-07-18 | H180: FY 2023 Sober Truth on Preventing Underage Drinking Act Grants | I180: 2023/09/30 - 2027/09/29 | J180: SP-23-002 | K180: CSAP (SP) | L180: New Start | M180: STOP Act | N180: Suffix present
A181: SP083502-01 | B181: MEDICAL CARE DEVELOPMENT, INC. | C181: AUGUSTA | D181: ME | E181: 60000 | F181: 2023 | G181: 2023-07-18 | H181: FY 2023 Sober Truth on Preventing Underage Drinking Act Grants | I181: 2023/09/30 - 2027/09/29 | J181: SP-23-002 | K181: CSAP (SP) | L181: New Start | M181: STOP Act | N181: Suffix present
A182: SP083488-01 | B182: COMMUNITY AGAINST SUBSTANCE ABUSE | C182: WINTHROP | D182: MA | E182: 60000 | F182: 2023 | G182: 2023-07-18 | H182: FY 2023 Sober Truth on Preventing Underage Drinking Act Grants | I182: 2023/09/30 - 2027/09/29 | J182: SP-23-002 | K182: CSAP (SP) | L182: New Start | M182: STOP Act | N182: Suffix present
A183: SP083489-01 | B183: SEBASTICOOK VALLEY HEALTH | C183: PITTSFIELD | D183: ME | E183: 60000 | F183: 2023 | G183: 2023-07-18 | H183: FY 2023 Sober Truth on Preventing Underage Drinking Act Grants | I183: 2023/09/30 - 2027/09/29 | J183: SP-23-002 | K183: CSAP (SP) | L183: New Start | M183: STOP Act | N183: Suffix present
A184: SP082989-02 | B184: VICTORY PROGRAMS, INC. | C184: BOSTON | D184: MA | E184: 361696 | F184: 2023 | G184: 2023-05-10 | H184: Harm Reduction Grant Program | I184: 2022/05/30 - 2025/05/29 | J184: SP-22-001 | K184: CSAP (SP) | L184: Continuation / Other | M184: Harm Reduction | N184: Suffix present
A185: SP082941-02 | B185: MAINEHEALTH | C185: PORTLAND | D185: ME | E185: 398960 | F185: 2023 | G185: 2023-05-10 | H185: Harm Reduction Grant Program | I185: 2022/05/30 - 2025/05/29 | J185: SP-22-001 | K185: CSAP (SP) | L185: Continuation / Other | M185: Harm Reduction | N185: Suffix present
A186: SP081227-04 | B186: DARTMOUTH-HITCHCOCK | C186: LEBANON | D186: NH | E186: 50000 | F186: 2023 | G186: 2023-05-10 | H186: Sober Truth on Preventing Underage Drinking Act Grants | I186: 2020/04/30 - 2024/04/29 | J186: SP-19-003 | K186: CSAP (SP) | L186: Continuation / Other | M186: STOP Act | N186: Suffix present
A187: SP081216-04 | B187: TOWN OF MADISON | C187: MADISON | D187: CT | E187: 50000 | F187: 2023 | G187: 2023-05-10 | H187: Sober Truth on Preventing Underage Drinking Act Grants | I187: 2020/04/30 - 2024/04/29 | J187: SP-19-003 | K187: CSAP (SP) | L187: Continuation / Other | M187: STOP Act | N187: Suffix present
A188: SP081219-04 | B188: HEALTHY COMMUNITY COALITION, INC. | C188: FARMINGTON | D188: ME | E188: 50000 | F188: 2023 | G188: 2023-05-10 | H188: Sober Truth on Preventing Underage Drinking Act Grants | I188: 2020/04/30 - 2024/04/29 | J188: SP-19-003 | K188: CSAP (SP) | L188: Continuation / Other | M188: STOP Act | N188: Suffix present
A189: SP081223-03 | B189: TOWN OF NEEDHAM | C189: NEEDHAM | D189: MA | E189: 50000 | F189: 2023 | G189: 2023-05-10 | H189: Sober Truth on Preventing Underage Drinking Act Grants | I189: 2021/04/30 - 2025/04/29 | J189: SP-19-003 | K189: CSAP (SP) | L189: Continuation / Other | M189: STOP Act | N189: Suffix present
A190: SP081194-04 | B190: BRIDGES HEALTHCARE, INC. | C190: MILFORD | D190: CT | E190: 50000 | F190: 2023 | G190: 2023-05-10 | H190: Sober Truth on Preventing Underage Drinking Act Grants | I190: 2020/04/30 - 2024/04/29 | J190: SP-19-003 | K190: CSAP (SP) | L190: Continuation / Other | M190: STOP Act | N190: Suffix present
A191: SP081120-04 | B191: WESTBROOK SCHOOL DEPARTMENT | C191: WESTBROOK | D191: ME | E191: 50000 | F191: 2023 | G191: 2023-05-10 | H191: Sober Truth on Preventing Underage Drinking Act Grants | I191: 2020/04/30 - 2024/04/29 | J191: SP-19-003 | K191: CSAP (SP) | L191: Continuation / Other | M191: STOP Act | N191: Suffix present
A192: SP081113-04 | B192: PLYMOUTH COUNTY DISTRICT ATTORNEY'S OFFICE | C192: BROCKTON | D192: MA | E192: 50000 | F192: 2023 | G192: 2023-05-10 | H192: Sober Truth on Preventing Underage Drinking Act Grants | I192: 2020/04/30 - 2024/04/29 | J192: SP-19-003 | K192: CSAP (SP) | L192: Continuation / Other | M192: STOP Act | N192: Suffix present
A193: SP081064-04 | B193: TOWN OF WARREN | C193: WARREN | D193: RI | E193: 50000 | F193: 2023 | G193: 2023-05-10 | H193: Sober Truth on Preventing Underage Drinking Act Grants | I193: 2020/04/30 - 2024/04/29 | J193: SP-19-003 | K193: CSAP (SP) | L193: Continuation / Other | M193: STOP Act | N193: Suffix present
A194: SP081066-04 | B194: FRANKLIN REGIONAL COUNCIL OF GOVERNMENTS | C194: GREENFIELD | D194: MA | E194: 50000 | F194: 2023 | G194: 2023-05-10 | H194: Sober Truth on Preventing Underage Drinking Act Grants | I194: 2020/04/30 - 2024/04/29 | J194: SP-19-003 | K194: CSAP (SP) | L194: Continuation / Other | M194: STOP Act | N194: Suffix present
A195: SP081067-04 | B195: ALLIANCE FOR SUBSTANCE ABUSE PREVENTION, INC. | C195: Nantucket | D195: MA | E195: 50000 | F195: 2023 | G195: 2023-05-10 | H195: Sober Truth on Preventing Underage Drinking Act Grants | I195: 2020/04/30 - 2024/04/29 | J195: SP-19-003 | K195: CSAP (SP) | L195: Continuation / Other | M195: STOP Act | N195: Suffix present
A196: SP081046-04 | B196: REALITY CHECK, INC. | C196: JAFFREY | D196: NH | E196: 50000 | F196: 2023 | G196: 2023-05-10 | H196: Sober Truth on Preventing Underage Drinking Act Grants | I196: 2020/04/30 - 2024/04/29 | J196: SP-19-003 | K196: CSAP (SP) | L196: Continuation / Other | M196: STOP Act | N196: Suffix present
A197: SP082724-01 | B197: CONNECTICUT ST DEPT OF MH/ADDICTION SRVS | C197: HARTFORD | D197: CT | E197: 850000 | F197: 2023 | G197: 2023-05-01 | H197: Grants to Prevent Prescription Drug/Opioid Overdose-Related Deaths | I197: 2023/08/31 - 2028/08/30 | J197: SP-21-002 | K197: CSAP (SP) | L197: New Start | M197: Overdose Prevention | N197: Suffix present
A198: SP080979-05 | B198: RHODE ISLAND DEPT OF BEHAVIORAL HEALTHCARE/DEVELOPMENTAL DISABILITIES/HOSP | C198: CRANSTON | D198: RI | E198: 2260000 | F198: 2022 | G198: 2022-10-03 | H198: Strategic Prevention Framework – Partnerships for Success | I198: 2018/09/30 - 2023/09/29 | J198: SP-18-008 | K198: CSAP (SP) | L198: Continuation / Other | M198: SPF-PFS | N198: Suffix present
A199: SP083458-01 | B199: SOUTHEASTERN REGIONAL ACTION COUNCIL, INC. | C199: NORWICH | D199: CT | E199: 49724 | F199: 2022 | G199: 2022-09-23 | H199: STOP Act Grants | I199: 2022/09/30 - 2026/09/29 | J199: SP-22-006 | K199: CSAP (SP) | L199: New Start | M199: STOP Act | N199: Suffix present
A200: SP083469-01 | B200: MRH CORP. | C200: DOVER FOXCROFT | D200: ME | E200: 50000 | F200: 2022 | G200: 2022-09-23 | H200: STOP Act Grants | I200: 2022/09/30 - 2026/09/29 | J200: SP-22-006 | K200: CSAP (SP) | L200: New Start | M200: STOP Act | N200: Suffix present
... 59 more rows

Sheet Read Me
A1: Region 1 Grant Award Trend Analysis
A3: FY2022-FY2025 | Auditable companion resource for the Prevention Continuity Playbook
A5: Purpose and scope
A6: This workbook calculates the financial statements on page 5 of the Prevention Continuity Playbook using the 258 award-action records supplied in grant-awards-2026-08-04.csv. It separates all records from CSAP/SP-prefix records, distinguishes new starts from continuation/other actions, and keeps the complete source data available for independent analysis.
A11: Methodology
A12: Measure | B12: Definition
A13: Total award dollars | B13: Sum of Amount across award-action records for the fiscal year.
A14: CSAP scope | B14: Award Number begins with SP. Two FY2024 and two FY2025 TI-prefix records are shown separately as other-center records.
A15: New start | B15: Award Number ends in -01. All other values, including supplements and 11 FY2025 records with no year suffix, are classified as Continuation / Other.
A16: STOP Act | B16: Program title contains either 'Sober Truth' or 'STOP Act'.
A17: Percent change | B17: (Later period - Earlier period) / Earlier period.
A19: How to use the file
A20: 1 | B20: Start on Summary for the strategic story.
A21: 2 | B21: Use Claim Check to see which playbook statements are supported, require scope correction, or should be replaced.
A22: 3 | B22: Use FY Analysis and STOP Analysis to inspect the formulas and show the math.
A23: 4 | B23: Use Program Mix to explore composition by program family.
A24: 5 | B24: Filter Raw Data to conduct your own analysis; formulas and classifications remain visible.
A26: Important interpretation note
A27: Award actions are not the same as appropriations, unique grant programs, or entirely new funding opportunities. Continuation awards can keep annual dollars elevated even when access to new awards contracts is decreased. National NOFO estimates and Region 1 award-action records are therefore reported as separate measures.
A32: Workbook convention | B32: Meaning | C32: Color | D32: Example
A33: Source input | B33: Provided or externally sourced value | C33: Blue text | D33: National NOFO funding
A34: Formula / linked result | B34: Calculated or linked cell | C34: Black or green text | D34: Annual total and percentage change

Sheet Summary
A1: Region 1 Grant Award Trends
A3: The defensible story: annual dollars peaked in FY2023, new starts contracted in FY2025, and continuation funding masked the STOP opportunity decline.
A5: FY2022 - All award dollars | D5: FY2025 - All award dollars | G5: FY2022 to FY2025 change
A6: ='FY Analysis'!C6 -> 18851609 | D6: ='FY Analysis'!C9 -> 16800358 | G6: ='FY Analysis'!E15 -> -0.1088103939
A9: Fiscal Year | B9: All Award Dollars | C9: YoY | D9: CSAP Award Dollars | E9: YoY | F9: All Actions
A10: 2022 | B10: ='FY Analysis'!C6 -> 18851609 | C10: ='FY Analysis'!D6 ->  | D10: ='FY Analysis'!F6 -> 18851609 | E10: ='FY Analysis'!G6 ->  | F10: ='FY Analysis'!B6 -> 62
A11: 2023 | B11: ='FY Analysis'!C7 -> 19471250 | C11: ='FY Analysis'!D7 -> 0.03286939592 | D11: ='FY Analysis'!F7 -> 19471250 | E11: ='FY Analysis'!G7 -> 0.03286939592 | F11: ='FY Analysis'!B7 -> 70
A12: 2024 | B12: ='FY Analysis'!C8 -> 17431993 | C12: ='FY Analysis'!D8 -> -0.1047316942 | D12: ='FY Analysis'!F8 -> 16079840 | E12: ='FY Analysis'!G8 -> -0.1741752584 | F12: ='FY Analysis'!B8 -> 64
A13: 2025 | B13: ='FY Analysis'!C9 -> 16800358 | C13: ='FY Analysis'!D9 -> -0.03623423897 | D13: ='FY Analysis'!F9 -> 15427780 | E13: ='FY Analysis'!G9 -> -0.04055139852 | F13: ='FY Analysis'!B9 -> 62
A16: What the numbers support
A17: 1 | B17: Total dollars did not surge. All-record dollars moved from $18.85M in FY2022 to $16.80M in FY2025 (-10.9%); CSAP/SP-prefix dollars fell 18.2%.
A18: 2 | B18: CSAP-only new starts fell 33.3% (18 to 12).
A19: 3 | B19: Fewer new starts did not mean fewer new-start dollars. Across all records, new-start dollars increased 2.3% from FY2024 to FY2025 because the FY2025 mix included larger awards.
A20: 4 | B20: STOP is the strongest example of hidden contraction. Region 1 new STOP starts fell 64.3%, while total STOP dollars rose 3.7% because continuations remained active.
A21: 5 | B21: National STOP opportunity funding fell 83.6% (84% rounded); expected awards fell 82.9% (83% rounded).
A22: 6 | B22: Continuation/other awards supplied 72%-80% of annual dollars, confirming that topline totals are heavily shaped by prior cohorts.
A25: Recommended headline for the public resource
A26: Region 1 award dollars remained substantial but contracted after FY2023, while access to new awards narrowed in FY2025. Continuation funding kept topline totals elevated, especially for STOP, masking a much steeper decline in new opportunities.

Sheet FY Analysis
A1: Fiscal-Year Analysis
A3: Every output below is formula-driven from the Raw Data tab.
A5: Fiscal Year | B5: All Actions | C5: All Award Dollars | D5: YoY - All Dollars | E5: CSAP Actions | F5: CSAP Award Dollars | G5: YoY - CSAP Dollars | H5: New Starts - All | I5: New-Start $ - All | J5: New Starts - CSAP | K5: New-Start $ - CSAP | L5: Continuation/Other $ - All | M5: Continuation Share
A6: 2022 | B6: =COUNTIFS('Raw Data'!$F$2:$F$259,A6) -> 62 | C6: =SUMIFS('Raw Data'!$E$2:$E$259,'Raw Data'!$F$2:$F$259,A6) -> 18851609 | E6: =COUNTIFS('Raw Data'!$F$2:$F$259,A6,'Raw Data'!$K$2:$K$259,"CSAP (SP)") -> 62 | F6: =SUMIFS('Raw Data'!$E$2:$E$259,'Raw Data'!$F$2:$F$259,A6,'Raw Data'!$K$2:$K$259,"CSAP (SP)") -> 18851609 | H6: =COUNTIFS('Raw Data'!$F$2:$F$259,A6,'Raw Data'!$L$2:$L$259,"New Start") -> 14 | I6: =SUMIFS('Raw Data'!$E$2:$E$259,'Raw Data'!$F$2:$F$259,A6,'Raw Data'!$L$2:$L$259,"New Start") -> 5304062 | J6: =COUNTIFS('Raw Data'!$F$2:$F$259,A6,'Raw Data'!$K$2:$K$259,"CSAP (SP)",'Raw Data'!$L$2:$L$259,"New Start") -> 14 | K6: =SUMIFS('Raw Data'!$E$2:$E$259,'Raw Data'!$F$2:$F$259,A6,'Raw Data'!$K$2:$K$259,"CSAP (SP)",'Raw Data'!$L$2:$L$259,"New Start") -> 5304062 | L6: =SUMIFS('Raw Data'!$E$2:$E$259,'Raw Data'!$F$2:$F$259,A6,'Raw Data'!$L$2:$L$259,"Continuation / Other") -> 13547547 | M6: =IFERROR(L6/C6,"") -> 0.7186414168
A7: 2023 | B7: =COUNTIFS('Raw Data'!$F$2:$F$259,A7) -> 70 | C7: =SUMIFS('Raw Data'!$E$2:$E$259,'Raw Data'!$F$2:$F$259,A7) -> 19471250 | D7: =IFERROR(C7/C6-1,"") -> 0.03286939592 | E7: =COUNTIFS('Raw Data'!$F$2:$F$259,A7,'Raw Data'!$K$2:$K$259,"CSAP (SP)") -> 70 | F7: =SUMIFS('Raw Data'!$E$2:$E$259,'Raw Data'!$F$2:$F$259,A7,'Raw Data'!$K$2:$K$259,"CSAP (SP)") -> 19471250 | G7: =IFERROR(F7/F6-1,"") -> 0.03286939592 | H7: =COUNTIFS('Raw Data'!$F$2:$F$259,A7,'Raw Data'!$L$2:$L$259,"New Start") -> 15 | I7: =SUMIFS('Raw Data'!$E$2:$E$259,'Raw Data'!$F$2:$F$259,A7,'Raw Data'!$L$2:$L$259,"New Start") -> 3812678 | J7: =COUNTIFS('Raw Data'!$F$2:$F$259,A7,'Raw Data'!$K$2:$K$259,"CSAP (SP)",'Raw Data'!$L$2:$L$259,"New Start") -> 15 | K7: =SUMIFS('Raw Data'!$E$2:$E$259,'Raw Data'!$F$2:$F$259,A7,'Raw Data'!$K$2:$K$259,"CSAP (SP)",'Raw Data'!$L$2:$L$259,"New Start") -> 3812678 | L7: =SUMIFS('Raw Data'!$E$2:$E$259,'Raw Data'!$F$2:$F$259,A7,'Raw Data'!$L$2:$L$259,"Continuation / Other") -> 15658572 | M7: 0.8041893561
A8: 2024 | B8: =COUNTIFS('Raw Data'!$F$2:$F$259,A8) -> 64 | C8: =SUMIFS('Raw Data'!$E$2:$E$259,'Raw Data'!$F$2:$F$259,A8) -> 17431993 | D8: -0.1047316942 | E8: =COUNTIFS('Raw Data'!$F$2:$F$259,A8,'Raw Data'!$K$2:$K$259,"CSAP (SP)") -> 62 | F8: =SUMIFS('Raw Data'!$E$2:$E$259,'Raw Data'!$F$2:$F$259,A8,'Raw Data'!$K$2:$K$259,"CSAP (SP)") -> 16079840 | G8: -0.1741752584 | H8: =COUNTIFS('Raw Data'!$F$2:$F$259,A8,'Raw Data'!$L$2:$L$259,"New Start") -> 20 | I8: =SUMIFS('Raw Data'!$E$2:$E$259,'Raw Data'!$F$2:$F$259,A8,'Raw Data'!$L$2:$L$259,"New Start") -> 4056456 | J8: =COUNTIFS('Raw Data'!$F$2:$F$259,A8,'Raw Data'!$K$2:$K$259,"CSAP (SP)",'Raw Data'!$L$2:$L$259,"New Start") -> 18 | K8: =SUMIFS('Raw Data'!$E$2:$E$259,'Raw Data'!$F$2:$F$259,A8,'Raw Data'!$K$2:$K$259,"CSAP (SP)",'Raw Data'!$L$2:$L$259,"New Start") -> 2704303 | L8: =SUMIFS('Raw Data'!$E$2:$E$259,'Raw Data'!$F$2:$F$259,A8,'Raw Data'!$L$2:$L$259,"Continuation / Other") -> 13375537 | M8: 0.7672982085
A9: 2025 | B9: =COUNTIFS('Raw Data'!$F$2:$F$259,A9) -> 62 | C9: =SUMIFS('Raw Data'!$E$2:$E$259,'Raw Data'!$F$2:$F$259,A9) -> 16800358 | D9: -0.03623423897 | E9: =COUNTIFS('Raw Data'!$F$2:$F$259,A9,'Raw Data'!$K$2:$K$259,"CSAP (SP)") -> 60 | F9: =SUMIFS('Raw Data'!$E$2:$E$259,'Raw Data'!$F$2:$F$259,A9,'Raw Data'!$K$2:$K$259,"CSAP (SP)") -> 15427780 | G9: -0.04055139852 | H9: =COUNTIFS('Raw Data'!$F$2:$F$259,A9,'Raw Data'!$L$2:$L$259,"New Start") -> 12 | I9: =SUMIFS('Raw Data'!$E$2:$E$259,'Raw Data'!$F$2:$F$259,A9,'Raw Data'!$L$2:$L$259,"New Start") -> 4150000 | J9: =COUNTIFS('Raw Data'!$F$2:$F$259,A9,'Raw Data'!$K$2:$K$259,"CSAP (SP)",'Raw Data'!$L$2:$L$259,"New Start") -> 12 | K9: =SUMIFS('Raw Data'!$E$2:$E$259,'Raw Data'!$F$2:$F$259,A9,'Raw Data'!$K$2:$K$259,"CSAP (SP)",'Raw Data'!$L$2:$L$259,"New Start") -> 4150000 | L9: =SUMIFS('Raw Data'!$E$2:$E$259,'Raw Data'!$F$2:$F$259,A9,'Raw Data'!$L$2:$L$259,"Continuation / Other") -> 12650358 | M9: 0.7529814543
A12: Selected changes - explicit math
A13: Measure | B13: Earlier Value | C13: Later Value | D13: Change | E13: % Change | F13: Formula
A14: All award dollars, FY2024 to FY2025 | B14: =C8 -> 17431993 | C14: =C9 -> 16800358 | D14: =C14-B14 -> -631635 | E14: =IFERROR(D14/B14,"") -> -0.03623423897 | F14: (FY25 - FY24) / FY24
A15: All award dollars, FY2022 to FY2025 | B15: =C6 -> 18851609 | C15: =C9 -> 16800358 | D15: -2051251 | E15: -0.1088103939 | F15: (FY25 - FY22) / FY22
A16: CSAP award dollars, FY2022 to FY2025 | B16: =F6 -> 18851609 | C16: =F9 -> 15427780 | D16: -3423829 | E16: -0.181619988 | F16: (FY25 - FY22) / FY22
A17: New starts - all records, FY2024 to FY2025 | B17: =H8 -> 20 | C17: =H9 -> 12 | D17: -8 | E17: -0.4 | F17: (12 - 20) / 20
A18: New starts - CSAP only, FY2024 to FY2025 | B18: =J8 -> 18 | C18: =J9 -> 12 | D18: -6 | E18: -0.3333333333 | F18: (12 - 18) / 18
A19: New-start dollars - all records, FY2024 to FY2025 | B19: =I8 -> 4056456 | C19: =I9 -> 4150000 | D19: 93544 | E19: 0.02306052377 | F19: (FY25 - FY24) / FY24

Sheet STOP Analysis
A1: STOP Act Analysis
A3: Regional award-action trends and national opportunity estimates are deliberately separated.
A5: Region 1 award-action records
A6: Fiscal Year | B6: Total STOP Actions | C6: Total STOP Dollars | D6: New STOP Starts | E6: New-Start Dollars | F6: YoY - Total $ | G6: YoY - New Starts | H6: YoY - New-Start $
A7: 2022 | B7: =COUNTIFS('Raw Data'!$F$2:$F$259,A7,'Raw Data'!$M$2:$M$259,"STOP Act") -> 21 | C7: =SUMIFS('Raw Data'!$E$2:$E$259,'Raw Data'!$F$2:$F$259,A7,'Raw Data'!$M$2:$M$259,"STOP Act") -> 1043759 | D7: =COUNTIFS('Raw Data'!$F$2:$F$259,A7,'Raw Data'!$M$2:$M$259,"STOP Act",'Raw Data'!$L$2:$L$259,"New Start") -> 6 | E7: =SUMIFS('Raw Data'!$E$2:$E$259,'Raw Data'!$F$2:$F$259,A7,'Raw Data'!$M$2:$M$259,"STOP Act",'Raw Data'!$L$2:$L$259,"New Start") -> 299723
A8: 2023 | B8: =COUNTIFS('Raw Data'!$F$2:$F$259,A8,'Raw Data'!$M$2:$M$259,"STOP Act") -> 27 | C8: =SUMIFS('Raw Data'!$E$2:$E$259,'Raw Data'!$F$2:$F$259,A8,'Raw Data'!$M$2:$M$259,"STOP Act") -> 1438041 | D8: =COUNTIFS('Raw Data'!$F$2:$F$259,A8,'Raw Data'!$M$2:$M$259,"STOP Act",'Raw Data'!$L$2:$L$259,"New Start") -> 10 | E8: =SUMIFS('Raw Data'!$E$2:$E$259,'Raw Data'!$F$2:$F$259,A8,'Raw Data'!$M$2:$M$259,"STOP Act",'Raw Data'!$L$2:$L$259,"New Start") -> 588389 | F8: =IFERROR(C8/C7-1,"") -> 0.3777519523 | G8: 0.6666666667 | H8: 0.9631092709
A9: 2024 | B9: =COUNTIFS('Raw Data'!$F$2:$F$259,A9,'Raw Data'!$M$2:$M$259,"STOP Act") -> 31 | C9: =SUMIFS('Raw Data'!$E$2:$E$259,'Raw Data'!$F$2:$F$259,A9,'Raw Data'!$M$2:$M$259,"STOP Act") -> 1779620 | D9: =COUNTIFS('Raw Data'!$F$2:$F$259,A9,'Raw Data'!$M$2:$M$259,"STOP Act",'Raw Data'!$L$2:$L$259,"New Start") -> 14 | E9: =SUMIFS('Raw Data'!$E$2:$E$259,'Raw Data'!$F$2:$F$259,A9,'Raw Data'!$M$2:$M$259,"STOP Act",'Raw Data'!$L$2:$L$259,"New Start") -> 840000 | F9: =IFERROR(C9/C8-1,"") -> 0.2375307797 | G9: 0.4 | H9: 0.4276269611
A10: 2025 | B10: =COUNTIFS('Raw Data'!$F$2:$F$259,A10,'Raw Data'!$M$2:$M$259,"STOP Act") -> 32 | C10: =SUMIFS('Raw Data'!$E$2:$E$259,'Raw Data'!$F$2:$F$259,A10,'Raw Data'!$M$2:$M$259,"STOP Act") -> 1844604 | D10: =COUNTIFS('Raw Data'!$F$2:$F$259,A10,'Raw Data'!$M$2:$M$259,"STOP Act",'Raw Data'!$L$2:$L$259,"New Start") -> 5 | E10: =SUMIFS('Raw Data'!$E$2:$E$259,'Raw Data'!$F$2:$F$259,A10,'Raw Data'!$M$2:$M$259,"STOP Act",'Raw Data'!$L$2:$L$259,"New Start") -> 300000 | F10: =IFERROR(C10/C9-1,"") -> 0.03651566065 | G10: -0.6428571429 | H10: -0.6428571429
A13: National STOP funding opportunity estimates
A14: Fiscal Year | B14: Estimated Program Funding | C14: Expected Awards | D14: Funding Change | E14: Funding % Change | F14: Award Change | G14: Award % Change | H14: Interpretation
A15: 2024 | B15: 4566000 | C15: 76 | H15: FY2024 baseline (SP-24-001)
A16: 2025 | B16: 750000 | C16: 13 | D16: =B16-B15 -> -3816000 | E16: =IFERROR(D16/B15,"") -> -0.8357424442 | F16: =C16-C15 -> -63 | G16: =IFERROR(F16/C15,"") -> -0.8289473684 | H16: FY2025 comparison (SP-25-001)
A19: What the STOP math means
A20: Nationally, estimated opportunity funding fell by 83.6% (84% when rounded to a whole percent), while expected awards fell by 82.9% (83% rounded). In Region 1, new STOP starts and their dollars each fell by 64.3% from FY2024 to FY2025. Yet total regional STOP award dollars rose 3.7% because continuation awards remained in the annual total. That contrast is the clearest evidence that topline funding can mask reduced access to new opportunities.

Sheet Program Mix
A1: Program Mix by Fiscal Year
A3: Award dollars by standardized program family; totals reconcile to the complete raw dataset.
A5: Program Family | B5: FY2022 | C5: FY2023 | D5: FY2024 | E5: FY2025 | F5: Four-Year Total
A6: SPF-PFS | B6: =SUMIFS('Raw Data'!$E$2:$E$259,'Raw Data'!$M$2:$M$259,$A6,'Raw Data'!$F$2:$F$259,2022) -> 11954488 | C6: =SUMIFS('Raw Data'!$E$2:$E$259,'Raw Data'!$M$2:$M$259,$A6,'Raw Data'!$F$2:$F$259,2023) -> 12075644 | D6: =SUMIFS('Raw Data'!$E$2:$E$259,'Raw Data'!$M$2:$M$259,$A6,'Raw Data'!$F$2:$F$259,2024) -> 8826879 | E6: =SUMIFS('Raw Data'!$E$2:$E$259,'Raw Data'!$M$2:$M$259,$A6,'Raw Data'!$F$2:$F$259,2025) -> 8546583 | F6: =SUM(B6:E6) -> 41403594
A7: STOP Act | B7: =SUMIFS('Raw Data'!$E$2:$E$259,'Raw Data'!$M$2:$M$259,$A7,'Raw Data'!$F$2:$F$259,2022) -> 1043759 | C7: =SUMIFS('Raw Data'!$E$2:$E$259,'Raw Data'!$M$2:$M$259,$A7,'Raw Data'!$F$2:$F$259,2023) -> 1438041 | D7: =SUMIFS('Raw Data'!$E$2:$E$259,'Raw Data'!$M$2:$M$259,$A7,'Raw Data'!$F$2:$F$259,2024) -> 1779620 | E7: =SUMIFS('Raw Data'!$E$2:$E$259,'Raw Data'!$M$2:$M$259,$A7,'Raw Data'!$F$2:$F$259,2025) -> 1844604 | F7: 6106024
A8: Overdose Prevention | B8: =SUMIFS('Raw Data'!$E$2:$E$259,'Raw Data'!$M$2:$M$259,$A8,'Raw Data'!$F$2:$F$259,2022) -> 1700000 | C8: =SUMIFS('Raw Data'!$E$2:$E$259,'Raw Data'!$M$2:$M$259,$A8,'Raw Data'!$F$2:$F$259,2023) -> 2550000 | D8: =SUMIFS('Raw Data'!$E$2:$E$259,'Raw Data'!$M$2:$M$259,$A8,'Raw Data'!$F$2:$F$259,2024) -> 2550000 | E8: =SUMIFS('Raw Data'!$E$2:$E$259,'Raw Data'!$M$2:$M$259,$A8,'Raw Data'!$F$2:$F$259,2025) -> 2020000 | F8: 8820000
A9: SPF Prescription Drugs | B9: =SUMIFS('Raw Data'!$E$2:$E$259,'Raw Data'!$M$2:$M$259,$A9,'Raw Data'!$F$2:$F$259,2022) -> 768000 | C9: =SUMIFS('Raw Data'!$E$2:$E$259,'Raw Data'!$M$2:$M$259,$A9,'Raw Data'!$F$2:$F$259,2023) -> 1152000 | D9: =SUMIFS('Raw Data'!$E$2:$E$259,'Raw Data'!$M$2:$M$259,$A9,'Raw Data'!$F$2:$F$259,2024) -> 860836 | E9: =SUMIFS('Raw Data'!$E$2:$E$259,'Raw Data'!$M$2:$M$259,$A9,'Raw Data'!$F$2:$F$259,2025) -> 1152000 | F9: 3932836
A10: HIV Prevention | B10: =SUMIFS('Raw Data'!$E$2:$E$259,'Raw Data'!$M$2:$M$259,$A10,'Raw Data'!$F$2:$F$259,2022) -> 1997512 | C10: =SUMIFS('Raw Data'!$E$2:$E$259,'Raw Data'!$M$2:$M$259,$A10,'Raw Data'!$F$2:$F$259,2023) -> 1494909 | D10: =SUMIFS('Raw Data'!$E$2:$E$259,'Raw Data'!$M$2:$M$259,$A10,'Raw Data'!$F$2:$F$259,2024) -> 1323124 | E10: =SUMIFS('Raw Data'!$E$2:$E$259,'Raw Data'!$M$2:$M$259,$A10,'Raw Data'!$F$2:$F$259,2025) -> 897944 | F10: 5713489
A11: First Responders-CARA | B11: =SUMIFS('Raw Data'!$E$2:$E$259,'Raw Data'!$M$2:$M$259,$A11,'Raw Data'!$F$2:$F$259,2022) -> 0 | C11: =SUMIFS('Raw Data'!$E$2:$E$259,'Raw Data'!$M$2:$M$259,$A11,'Raw Data'!$F$2:$F$259,2023) -> 0 | D11: =SUMIFS('Raw Data'!$E$2:$E$259,'Raw Data'!$M$2:$M$259,$A11,'Raw Data'!$F$2:$F$259,2024) -> 1352153 | E11: =SUMIFS('Raw Data'!$E$2:$E$259,'Raw Data'!$M$2:$M$259,$A11,'Raw Data'!$F$2:$F$259,2025) -> 1372578 | F11: 2724731
A12: PTTC | B12: =SUMIFS('Raw Data'!$E$2:$E$259,'Raw Data'!$M$2:$M$259,$A12,'Raw Data'!$F$2:$F$259,2022) -> 600000 | C12: =SUMIFS('Raw Data'!$E$2:$E$259,'Raw Data'!$M$2:$M$259,$A12,'Raw Data'!$F$2:$F$259,2023) -> 0 | D12: =SUMIFS('Raw Data'!$E$2:$E$259,'Raw Data'!$M$2:$M$259,$A12,'Raw Data'!$F$2:$F$259,2024) -> 739381 | E12: =SUMIFS('Raw Data'!$E$2:$E$259,'Raw Data'!$M$2:$M$259,$A12,'Raw Data'!$F$2:$F$259,2025) -> 966649 | F12: 2306030
A13: Harm Reduction | B13: =SUMIFS('Raw Data'!$E$2:$E$259,'Raw Data'!$M$2:$M$259,$A13,'Raw Data'!$F$2:$F$259,2022) -> 787850 | C13: =SUMIFS('Raw Data'!$E$2:$E$259,'Raw Data'!$M$2:$M$259,$A13,'Raw Data'!$F$2:$F$259,2023) -> 760656 | D13: =SUMIFS('Raw Data'!$E$2:$E$259,'Raw Data'!$M$2:$M$259,$A13,'Raw Data'!$F$2:$F$259,2024) -> 0 | E13: =SUMIFS('Raw Data'!$E$2:$E$259,'Raw Data'!$M$2:$M$259,$A13,'Raw Data'!$F$2:$F$259,2025) -> 0 | F13: 1548506
A14: Other | B14: =SUMIFS('Raw Data'!$E$2:$E$259,'Raw Data'!$M$2:$M$259,$A14,'Raw Data'!$F$2:$F$259,2022) -> 0 | C14: =SUMIFS('Raw Data'!$E$2:$E$259,'Raw Data'!$M$2:$M$259,$A14,'Raw Data'!$F$2:$F$259,2023) -> 0 | D14: =SUMIFS('Raw Data'!$E$2:$E$259,'Raw Data'!$M$2:$M$259,$A14,'Raw Data'!$F$2:$F$259,2024) -> 0 | E14: =SUMIFS('Raw Data'!$E$2:$E$259,'Raw Data'!$M$2:$M$259,$A14,'Raw Data'!$F$2:$F$259,2025) -> 0 | F14: 0
A15: TOTAL | B15: =SUM(B6:B14) -> 18851609 | C15: 19471250 | D15: 17431993 | E15: 16800358 | F15: 72555210

Sheet Checks
A1: Workbook Checks
A3: PASS means the source rows, annual rollups, and analysis scopes reconcile.
A5: Check | B5: Actual | C5: Expected | D5: Difference | E5: Status | F5: Where to fix / Notes
A6: Raw data row count | B6: =COUNTA('Raw Data'!$A$2:$A$259) -> 258 | C6: 258 | D6: =B6-C6 -> 0 | E6: =IF(ABS(D6)<0.01,"OK","REVIEW") -> OK | F6: Raw Data
A7: FY action counts sum to raw rows | B7: =SUM('FY Analysis'!$B$6:$B$9) -> 258 | C7: =B6 -> 258 | D7: 0 | E7: OK | F7: FY Analysis B6:B9
A8: Annual award dollars tie to raw-data total | B8: =SUM('FY Analysis'!$C$6:$C$9) -> 72555210 | C8: =SUM('Raw Data'!$E$2:$E$259) -> 72555210 | D8: 0 | E8: OK | F8: FY Analysis C6:C9
A9: CSAP + other-center actions tie to raw rows | B9: =COUNTIF('Raw Data'!$K$2:$K$259,"CSAP (SP)")+COUNTIF('Raw Data'!$K$2:$K$259,"Other center (TI)") -> 258 | C9: =B6 -> 258 | D9: 0 | E9: OK | F9: Raw Data Center Scope
A10: New + continuation/other actions tie to raw rows | B10: =COUNTIF('Raw Data'!$L$2:$L$259,"New Start")+COUNTIF('Raw Data'!$L$2:$L$259,"Continuation / Other") -> 258 | C10: =B6 -> 258 | D10: 0 | E10: OK | F10: Raw Data Action Type
A12: MODEL STATUS | B12: =IF(COUNTIF(E6:E10,"REVIEW")=0,"PASS","FAIL") -> PASS
A13: Required checks | B13: 5
A14: Failed checks | B14: =COUNTIF(E6:E10,"REVIEW") -> 0

Sheet Sources & Notes
A1: Sources and Audit Notes
A3: Source definitions, access points, and limitations.
A5: Item | B5: Period / As-of | C5: Source Type | D5: Source / File | E5: Reference | F5: Notes
A6: Region 1 award actions | B6: FY2022-FY2025 | C6: Provided raw data | D6: grant-awards-2026-08-04.csv | E6: 258 records | F6: States represented: CT, ME, MA, NH, RI, VT.
A7: Playbook statements | B7: Current attached version | C7: Provided PDF | D7: Prevention-Continuity-Playbook(3).pdf | E7: Page 5 | F7: Claims audited in Claim Check.
A8: SAMHSA grant awards | B8: Accessed 2026-08-04 | C8: Federal website | D8: https://www.samhsa.gov/grants/grants-dashboard | E8: Grants Dashboard | F8: Underlying award-action context.
A9: FY2024 STOP opportunity | B9: FY2024 | C9: Federal NOFO | D9: https://www.samhsa.gov/sites/default/files/grants/doc/fy-2024-stop-act-sp-24-001.docx | E9: SP-24-001 | F9: $4,566,000 estimated funding; 76 expected awards.
A10: FY2025 STOP opportunity | B10: FY2025 | C10: Federal opportunity | D10: https://simpler.grants.gov/opportunity/dc8fefd8-0410-4e24-956c-6ab57ac71fe1 | E10: SP-25-001 | F10: $750,000 estimated funding; 13 expected awards.
A11: Prepared by | B11: 2026-08-04 | C11: Analysis | D11: Nicole M. Augustine / RIZE Consultants | E11: Version 1.0 | F11: Formula-driven companion resource.
A14: Limitations
A15: This is a descriptive analysis of the supplied award-action extract. It does not measure congressional appropriations, obligations outside the extract, application volume, success rates, or the full national grant portfolio. Award numbers are used as the operational proxy for new starts; records ending in -01 are classified as new. Eleven FY2025 award numbers lack a year suffix in the source and are classified as continuation/other because none represents a newly appearing base award in the supplied time series. National STOP values are estimated opportunity amounts and expected award counts from the NOFOs, not actual Region 1 award totals.
